Workbook

Sheet Zał.1
E1: Załącznik nr 1
E2: do uchwały Nr VIII/75/2024
E3: Rady Dzielnicy Białołęka m.st. Warszawy
E4: z 16 października 2024 r.
A5: ŚRODKI PRZEZNACZONE DO DYSPOZYCJI DZIELNICY BIAŁOŁĘKA NA REALIZACJĘ INWESTYCJI I ZADAŃ WŁASNYCH
A8: Dział | B8: Rozdział | C8: Paragraf | D8: Wyszczególnienie | E8: Dodatkowe środki fin. przeznaczone do dyspozycji Dzielnicy
E9: Plan dochodów przed zmianą | F9: Zmniejszenia | G9: Zwiększenia | H9: Plan dochodów po zmianie
A10: 1 | B10: 2 | C10: 3 | D10: 4 | E10: 5 | F10: 6 | G10: 7 | H10: 8
D11: OGÓŁEM | E11: 876514717 | F11: 30151559 | G11: 3400662 | H11: =E11-F11+G11 -> 849763820
D12: Dodatkowe środki do dyspozycji dzielnicy | E12: 821753544 | F12: 23876891 | G12: 2570707 | H12: =E12-F12+G12 -> 800447360

Sheet dochody
K1: Załącznik nr 1a
K2: do uchwały Nr VIII/75/2024
K3: Rady Dzielnicy Białołęka m.st. Warszawy
K4: z 16 października 2024 r.
A7: WNIOSEK W SPRAWIE ZMIAN W PLANIE DOCHODÓW
M8: w zł
A9: Stanowisko finansowe | C9: Pozycje finansowe | F9: Obszar funkcjonalny | G9: Program budżetowy | I9: Plan wg stanu na dzień | J9: Zaangażowanie */ Wykonanie * wg stanu na dzień | K9: Proponowane zmiany | M9: Plan po zmianach
A10: Nazwa dysponenta ** | B10: Kod | C10: Dział | D10: Rozdział | E10: § | F10: Kod | G10: Nazwa | H10: Kod | K10: zmniejszenia | L10: zwiększenia
A14: Dzielnicowe Biuro Finansów Oświaty Białołęka | B14: J.02.000 | C14: 854.85412.D0830+000 | F14: GMMW | G14: Wpływy z usług - pozostałe | H14: DWB/6/WU/PO | I14: 215000 | K14: 0 | L14: 580000 | M14: =L14+I14-K14 -> 795000
A15: Dzielnica Białołęka Urząd | B15: U.02.000 | C15: 900.90095.D0950+000 | F15: GMMW | G15: Pozostałe mandaty i kary pieniężne | H15: DWB/6/MP/PO | I15: 0 | L15: 200000 | M15: =L15+I15-K15 -> 200000
A16: Dzielnica Białołęka Urząd | B16: U.02.000 | C16: 700.70005.D0920+000 | F16: GMMW | G16: Pozostałe odsetki | H16: DWB/6/PO | I16: 126000 | L16: 15055 | M16: 141055
A17: Samodzielne Wieloosobowe Stanowisko Pracy ds. Funduszy Europejskich | B17: U.02.000 | C17: 801.80195.D0960+000 | F17: GMMW | G17: Darowizny i spadki pieniężne | H17: DWB/6/DP | L17: 19137 | M17: 19137
A18: Dzielnica Białołęka Urząd | B18: U.02.000 | C18: 600.60016.D6290+000 | F18: DE/02/0041 | G18: Środki na inwestycje pozyskane z innych źródeł | H18: DZM/4 | I18: 50000 | K18: 40000 | M18: 10000
A19: Dzielnica Białołęka Urząd | B19: U.02.000 | C19: 600.60016.D6290+000 | F19: DE/02/0006 | G19: Środki na inwestycje pozyskane z innych źródeł | H19: DZM/4 | I19: 3872 | K19: 3872 | L19: 0 | M19: 0
A20: Dzielnica Białołęka Urząd | B20: U.02.000 | C20: 600.60016.D6290+000 | F20: DE/02/0007 | G20: Środki na inwestycje pozyskane z innych źródeł | H20: DZM/4 | I20: 172893 | K20: 172893 | L20: 0 | M20: 0
A21: Dzielnica Białołęka Urząd | B21: U.02.000 | C21: 600.60016.D6290+000 | F21: DE/02/0008 | G21: Środki na inwestycje pozyskane z innych źródeł | H21: DZM/4 | I21: 43470 | K21: 43470 | L21: 0 | M21: 0
A22: Dzielnica Białołęka Urząd | B22: U.02.000 | C22: 600.60016.D6290+000 | F22: DE/02/0009 | G22: Środki na inwestycje pozyskane z innych źródeł | H22: DZM/4 | I22: 665227 | K22: 665227 | L22: 0 | M22: 0
A23: Dzielnica Białołęka Urząd | B23: U.02.000 | C23: 600.60016.D6290+000 | F23: DE/02/0010 | G23: Środki na inwestycje pozyskane z innych źródeł | H23: DZM/4 | I23: 54101 | K23: 54101 | L23: 0 | M23: 0
A24: Dzielnica Białołęka Urząd | B24: U.02.000 | C24: 600.60016.D6290+000 | F24: GMMW | G24: Środki na inwestycje pozyskane z innych źródeł | H24: DZM/4 | I24: 0 | K24: 0 | L24: 1980 | M24: 1980
A25: Dzielnica Białołęka Urząd | B25: U.02.000 | C25: 600.60016.D6290+000 | F25: DE/02/0013 | G25: Środki na inwestycje pozyskane z innych źródeł | H25: DZM/4 | I25: 622934 | K25: 622934 | L25: 0 | M25: 0
A26: Dzielnica Białołęka Urząd | B26: U.02.000 | C26: 600.60016.D6290+000 | F26: DE/02/0014 | G26: Środki na inwestycje pozyskane z innych źródeł | H26: DZM/4 | I26: 245457 | K26: 170492 | L26: 0 | M26: 74965
A27: Dzielnica Białołęka Urząd | B27: U.02.000 | C27: 600.60016.D6290+000 | F27: DE/02/0016 | G27: Środki na inwestycje pozyskane z innych źródeł | H27: DZM/4 | I27: 153160 | K27: 124426 | L27: 13783 | M27: 42517
A28: Dzielnica Białołęka Urząd | B28: U.02.000 | C28: 600.60016.D6290+000 | F28: DE/02/0017 | G28: Środki na inwestycje pozyskane z innych źródeł | H28: DZM/4 | I28: 111284 | K28: 111284 | L28: 0 | M28: 0
A29: Dzielnica Białołęka Urząd | B29: U.02.000 | C29: 600.60016.D6290+000 | F29: DE/02/0015 | G29: Środki na inwestycje pozyskane z innych źródeł | H29: DZM/4 | I29: 203560 | K29: 203560 | L29: 0 | M29: 0
A30: Dzielnica Białołęka Urząd | B30: U.02.000 | C30: 600.60016.D6290+000 | F30: DE/02/0021 | G30: Środki na inwestycje pozyskane z innych źródeł | H30: DZM/4 | I30: 2309629 | K30: 2309629 | L30: 0 | M30: 0
A31: Dzielnica Białołęka Urząd | B31: U.02.000 | C31: 600.60016.D6290+000 | F31: DE/02/0022 | G31: Środki na inwestycje pozyskane z innych źródeł | H31: DZM/4 | I31: 46485 | K31: 46485 | L31: 0 | M31: 0
A32: Dzielnica Białołęka Urząd | B32: U.02.000 | C32: 600.60016.D6290+000 | F32: DE/02/0020 | G32: Środki na inwestycje pozyskane z innych źródeł | H32: DZM/4 | I32: 200000 | K32: 200000 | L32: 0 | M32: 0
A33: Dzielnica Białołęka Urząd | B33: U.02.000 | C33: 600.60016.D6290+000 | F33: DE/02/0018 | G33: Środki na inwestycje pozyskane z innych źródeł | H33: DZM/4 | I33: 852675 | K33: 852675 | L33: 0 | M33: 0
A34: Dzielnica Białołęka Urząd | B34: U.02.000 | C34: 600.60016.D6290+000 | F34: DE/02/0023 | G34: Środki na inwestycje pozyskane z innych źródeł | H34: DZM/4 | I34: 648520 | K34: 648520 | L34: 0 | M34: 0
A35: Dzielnica Białołęka Urząd | B35: U.02.000 | C35: 600.60016.D6290+000 | F35: DE/02/0025 | G35: Środki na inwestycje pozyskane z innych źródeł | H35: DZM/4 | I35: 300 | K35: 300 | L35: 0 | M35: 0
A36: Dzielnica Białołęka Urząd | B36: U.02.000 | C36: 600.60016.D6290+000 | F36: DE/02/0028 | G36: Środki na inwestycje pozyskane z innych źródeł | H36: DZM/4 | I36: 1500 | K36: 1500 | L36: 0 | M36: 0
A37: Dzielnica Białołęka Urząd | B37: U.02.000 | C37: 600.60016.D6290+000 | F37: DE/02/0030 | G37: Środki na inwestycje pozyskane z innych źródeł | H37: DZM/4 | I37: 1500 | K37: 600 | L37: 0 | M37: 900
A38: Dzielnica Białołęka Urząd | B38: U.02.000 | C38: 600.60016.D6290+000 | F38: DE/02/0035 | G38: Środki na inwestycje pozyskane z innych źródeł | H38: DZM/4 | I38: 900 | K38: 900 | L38: 0 | M38: 0
A39: Dzielnica Białołęka Urząd | B39: U.02.000 | C39: 600.60016.D6290+000 | F39: DE/02/0036 | G39: Środki na inwestycje pozyskane z innych źródeł | H39: DZM/4 | I39: 1500 | K39: 1500 | L39: 0 | M39: 0
A40: Dzielnica Białołęka Urząd | B40: U.02.000 | C40: 600.60016.D6290+000 | F40: DE/02/0037 | G40: Środki na inwestycje pozyskane z innych źródeł | H40: DZM/4 | I40: 300 | K40: 300 | L40: 0 | M40: 0
A41: RAZEM | I41: =SUM(I14:I40) -> 6730267 | J41: =SUM(J14:J40) -> 0 | K41: =SUM(K14:K40) -> 6274668 | L41: =SUM(L14:L40) -> 829955 | M41: =SUM(M14:M40) -> 1285554

Sheet Wniosek
K1: Załącznik nr 2
K2: do uchwały Nr VIII/75/2024
K3: Rady Dzielnicy Białołęka m.st. Warszawy
K4: z 16 października 2024 r.
A5: WNIOSEK W SPRAWIE ZMIAN W PLANIE WYDATKÓW BIEŻĄCYCH
L6: z dnia
A9: WNIOSEK W SPRAWIE ZMIAN W PLANIE WYDATKÓW BIEŻĄCYCH
M11: w zł
A12: Stanowisko finansowe | C12: Pozycje finansowe | F12: Obszar funkcjonalny | G12: Program budżetowy | I12: Plan wg stanu na dzień | J12: Zaangażowanie */ Wykonanie * wg stanu na dzień | K12: Proponowane zmiany | M12: Plan po zmianach
A13: Nazwa dysponenta ** | B13: Kod | C13: Dział | D13: Rozdział | E13: § | F13: Kod | G13: Nazwa | H13: Kod | K13: zmniejszenia | L13: zwiększenia
A17: Dzielnicowe Biuro Finansów Oświaty Białołęka | B17: J.02.000 | C17: 801.80104.W4210+000 | F17: GMMW | G17: Prowadzenie publicznych przedszkoli i innych form wychowania przedszkolnego | H17: B/V/1/1/1 | I17: 662180 | K17: 0 | L17: 14108 | M17: =I17-K17+L17 -> 676288
A18: Dzielnicowe Biuro Finansów Oświaty Białołęka | B18: J.02.000 | C18: 801.80104.W4350+000 | F18: GUUW | G18: Prowadzenie publicznych przedszkoli i innych form wychowania przedszkolnego | H18: B/V/1/1/1 | I18: 15926 | K18: 0 | L18: 740 | M18: =I18-K18+L18 -> 16666
A19: Dzielnicowe Biuro Finansów Oświaty Białołęka | B19: J.02.000 | C19: 801.80101.W4300+000 | F19: GMMW | G19: Prowadzenie publicznych szkół podstawowych | H19: B/V/1/4/1 | I19: 2010930 | K19: 0 | L19: 76983 | M19: 2087913
A20: Dzielnicowe Biuro Finansów Oświaty Białołęka | B20: J.02.000 | C20: 801.80101.W4370+000 | F20: GUUW | G20: Prowadzenie publicznych szkół podstawowych | H20: B/V/1/4/1 | I20: 147768 | K20: 0 | L20: 5612 | M20: 153380
A21: Dzielnicowe Biuro Finansów Oświaty Białołęka | B21: J.02.000 | C21: 801.80101.W4390+000 | F21: GMMW | G21: Prowadzenie publicznych szkół podstawowych | H21: B/V/1/4/1 | I21: 116653 | K21: 0 | L21: 13567 | M21: 130220
A22: Dzielnicowe Biuro Finansów Oświaty Białołęka | B22: J.02.000 | C22: 801.80101.W4790+000 | F22: GMMW | G22: Prowadzenie publicznych szkół podstawowych | H22: B/V/1/4/1 | I22: 107012139 | K22: 0 | L22: 580000 | M22: 107592139
A23: Dzielnicowe Biuro Finansów Oświaty Białołęka | B23: J.02.000 | C23: 801.80101.W4270+000 | F23: GMMW | G23: Remonty w przedszkolach, szkołach i placówkach oświatowych | H23: B/V/1/27 | I23: 1192354 | K23: 0 | L23: 40000 | M23: 1232354
A24: Dzielnicowe Biuro Finansów Oświaty Białołęka | B24: J.02.000 | C24: 854.85412.W4170+000 | F24: GMMW | G24: Wypoczynek dzieci i młodzieży szkolnej | H24: B/V/2/7 | I24: 1395777 | K24: 76618 | L24: 0 | M24: 1319159
A25: Dzielnicowe Biuro Finansów Oświaty Białołęka | B25: J.02.000 | C25: 801.80195.W4300+000 | F25: GMMW | G25: Programy edukacyjno - oświatowe | H25: B/V/2/9/1 | I25: 1020566 | K25: 0 | L25: 19137 | M25: 1039703
A26: Ośrodek Pomocy Społecznej | B26: J.02.000 | C26: 854.85415.W3240+000 | F26: GMMW | G26: Stypendia socjalne | H26: B/V/2/8/2 | I26: 122343 | K26: 39313 | L26: 0 | M26: 83030
A27: Dzielnicowe Biuro Finansów Oświaty Białołęka | B27: J.02.000 | C27: 801.80195.W4301+000 | F27: SFUE/4/529 | G27: Projekty edukacyjno - oświatowe realizowane w ramach programów Unii Europejskiej | H27: B/V/2/9/2 | I27: 31000 | K27: 31000 | L27: 0 | M27: 0
A28: Dzielnicowe Biuro Finansów Oświaty Białołęka | B28: J.02.000 | C28: 801.80195.W4421+000 | F28: SFUE/4/529 | G28: Projekty edukacyjno - oświatowe realizowane w ramach programów Unii Europejskiej | H28: B/V/2/9/2 | I28: 12000 | K28: 6000 | L28: 0 | M28: 6000
A29: Dzielnicowe Biuro Finansów Oświaty Białołęka | B29: J.02.000 | C29: 801.80195.W4431+000 | F29: SFUE/4/529 | G29: Projekty edukacyjno - oświatowe realizowane w ramach programów Unii Europejskiej | H29: B/V/2/9/2 | I29: 500 | K29: 500 | L29: 0 | M29: 0
A30: Ośrodek Pomocy Społecznej | B30: J.02.000 | C30: 852.85219.W3020+000 | F30: GMMW | G30: Jednostki obsługi zadań z zakresu pomocy społecznej | H30: B/VI/3/7 | I30: 25000 | K30: 0 | L30: 15000 | M30: 40000
A31: Ośrodek Pomocy Społecznej | B31: J.02.000 | C31: 852.85219.W4140+000 | F31: GMMW | G31: Jednostki obsługi zadań z zakresu pomocy społecznej | H31: B/VI/3/7 | I31: 110300 | K31: 0 | L31: 15000 | M31: 125300
A32: Ośrodek Pomocy Społecznej | B32: J.02.000 | C32: 852.85219.W4270+000 | F32: GMMW | G32: Jednostki obsługi zadań z zakresu pomocy społecznej | H32: B/VI/3/7 | I32: 20000 | K32: 0 | L32: 2901 | M32: 22901
A33: Ośrodek Pomocy Społecznej | B33: J.02.000 | C33: 852.85219.W4300+000 | F33: GMMW | G33: Jednostki obsługi zadań z zakresu pomocy społecznej | H33: B/VI/3/7 | I33: 357608 | K33: 0 | L33: 9313 | M33: 366921
A34: Wydział Infrastruktury | B34: U.02.000 | C34: 600.60016.W4270+000 | F34: GMMW | G34: Utrzymanie i remonty dróg gminnych | H34: B/I/2/1/1 | I34: 10642438 | L34: 29978 | M34: 10672416
A35: Wydział Ochrony Środowiska | B35: U.02.000 | C35: 600.60016.W4300+000 | F35: GMMW | G35: Utrzymanie i remonty dróg gminnych | H35: B/I/2/1/1 | I35: 610256 | K35: 20000 | M35: 590256
A36: Wydział Ochrony Środowiska | B36: U.02.000 | C36: 400.40002.W4260+000 | F36: GMMW | G36: Utrzymanie i remonty sieci wodno-kanalizacyjnej | H36: B/III/2/1 | I36: 75000 | K36: 23956 | M36: 51044
A37: Wydział Ochrony Środowiska | B37: U.02.000 | C37: 400.40002.W4390+000 | F37: GMMW | G37: Utrzymanie i remonty sieci wodno-kanalizacyjnej | H37: B/III/2/1 | I37: 26000 | K37: 13325 | M37: 12675
A38: Wydział Ochrony Środowiska | B38: U.02.000 | C38: 900.90001.W4430+000 | F38: GMMW | G38: Utrzymanie i konserwacja urządzeń wodnych i innych zbiorników wodnych | H38: B/III/2/3 | I38: 0 | L38: 360014 | M38: 360014
A39: Wydział Ochrony Środowiska | B39: U.02.000 | C39: 600.60016.W4300+000 | F39: GMMW | G39: Utrzymanie i konserwacja zieleni przyulicznej | H39: B/III/3/2 | I39: 960000 | K39: 127716 | M39: 832284
A40: Wydział Ochrony Środowiska | B40: U.02.000 | C40: 925.92595.W4260+000 | F40: GMMW | G40: Utrzymanie parków | H40: B/III/3/3 | I40: 156000 | K40: 155017 | M40: 983
A41: Wydział Oświaty i Wychowania | B41: U.02.000 | C41: 801.80195.W4110+000 | F41: GMMW | G41: Nagrody dla nauczycieli | H41: B/V/2/5 | I41: 54408 | K41: 200 | M41: 54208
A42: Wydział Oświaty i Wychowania | B42: U.02.000 | C42: 801.80195.W4790+000 | F42: GMMW | G42: Nagrody dla nauczycieli | H42: B/V/2/5 | I42: 316512 | K42: 1800 | M42: 314712
A43: Wydział Oświaty i Wychowania | B43: U.02.000 | C43: 854.85495.W4110+000 | F43: GMMW | G43: Nagrody dla nauczycieli | H43: B/V/2/5 | I43: 2990 | L43: 200 | M43: 3190
A44: Wydział Oświaty i Wychowania | B44: U.02.000 | C44: 854.85495.W4790+000 | F44: GMMW | G44: Nagrody dla nauczycieli | H44: B/V/2/5 | I44: 16344 | L44: 1800 | M44: 18144
A45: Wydział Spraw Społecznych i Zdrowia | B45: U.02.000 | C45: 851.85154.W2360+000 | F45: GMMW | G45: Miejski Program Profilaktyki i Rozwiązywania Problemów Alkoholowych | H45: B/VI/1/6/10 | I45: 1545750 | L45: 20000 | M45: 1565750
A46: Wydział Spraw Społecznych i Zdrowia | B46: U.02.000 | C46: 855.85504.W2360+000 | F46: GWDW | G46: Zapewnienie pomocy, opieki i wychowania dzieciom i młodzieży pozbawionym opieki rodziców | H46: B/VI/3/9 | L46: 64800 | M46: 64800
A47: Wydział Ochrony Środowiska | B47: U.02.000 | C47: 921.92195.W4270+000 | F47: GMMW | G47: Utrzymanie pomników, rzeźb i innych miejsc pamięci | H47: B/VII/4/2 | I47: 20000 | K47: 20000 | M47: 0
A48: Wydział Administracyjno Gospodarczy | B48: U.02.000 | C48: 750.75023.W4370+000 | F48: GUUW | G48: Zadania z zakresu ewidencji ludności, wydawania dowodów osobistych, decyzji administracyjnych | H48: B/X/1/1/1 | I48: 15000 | K48: 15000 | M48: 0
A49: Wydział Administracyjno Gospodarczy | B49: U.02.000 | C49: 754.75495.W4370+000 | F49: FPUG12 | G49: Zadania z zakresu ewidencji ludności, wydawania dowodów osobistych, decyzji administracyjnych | H49: B/X/1/1/1 | I49: 3957 | K49: 440 | M49: 3517
A50: Wydział Administracyjno Gospodarczy | B50: U.02.000 | C50: 750.75023.W4530+000 | F50: GMMW | G50: Remonty bieżące w budynkach | H50: B/X/2/2/1 | I50: 26500 | K50: 11700 | M50: 14800
A51: Wydział Administracyjno Gospodarczy | B51: U.02.000 | C51: 750.75023.W4300+000 | F51: GMMW | G51: Utrzymanie Urzędu | H51: B/X/2/2/2 | I51: 705000 | L51: 15055 | M51: 720055
A52: Wydział Administracyjno Gospodarczy | B52: U.02.000 | C52: 750.75023.W4400+000 | F52: GMMW | G52: Utrzymanie Urzędu | H52: B/X/2/2/2 | I52: 120000 | K52: 40000 | M52: 80000
A53: Wydział Administracyjno Gospodarczy | B53: U.02.000 | C53: 750.75023.W4530+000 | F53: GMMW | G53: Utrzymanie Urzędu | H53: B/X/2/2/2 | I53: 60000 | K53: 11500 | M53: 48500
A54: Wydział Administracyjno Gospodarczy | B54: U.02.000 | C54: 750.75023.W4300+000 | F54: GMMW | G54: Obsługa kancelaryjna | H54: B/X/2/2/7 | I54: 922000 | K54: 60000 | M54: 862000
A55: Wydział Administracyjno Gospodarczy | B55: U.02.000 | C55: 750.75023.W4530+000 | F55: GMMW | G55: Ochrona osób i mienia | H55: B/X/2/2/9 | I55: 31500 | K55: 16800 | M55: 14700
A56: RAZEM | I56: =SUM(I17:I55) -> 130562699 | J56: =SUM(J17:J55) -> 0 | K56: =SUM(K17:K55) -> 670885 | L56: =SUM(L17:L55) -> 1284208 | M56: =SUM(M17:M55) -> 131176022

Sheet ZADANIOWY
A1: PLAN WYDATKÓW w UKŁADZIE ZADANIOWYM | P1: Załącznik Nr 2a do Uchwały Nr VIII/75/2024 Rady Dzielnicy Białołęka m.st. Warszawy z 16 października 2024 r. | V1: =IF(COUNTA(V2:V15578)=0,"",COUNTA(V2:V15578)) -> 
A2: D.02.000 | B2: . | F2: . | J2: =J11217 -> 760517468 | K2: 304207299 | L2: 670885 | M2: 1284208 | N2: 517454 | O2: 491847 | P2: 761130791 | Q2: 304181692
A3: PROGRAM | B3: OPIS | C3: S/P/Z/PZ | D3: Header | E3: DZIAŁ | F3: ROZDZIAŁ | G3: § | H3: NAZWA PARAGRAFU | I3: OBSZAR FUNKCJONALNY | J3: PLAN | K3: w tym Urząd m.st. Warszawy | L3: PLAN Zmiana[-] | M3: PLAN Zmiana[+] | N3: w tym Urząd Zmiana[-] | O3: w tym Urząd Zmiana[+] | P3: PLAN PO ZMIANIE | Q3: w tym Urząd PO ZMIANIE | R3: WYPEŁNIONE POZYCJE | S3: WYPEŁNIONE ZMIANY | T3: =IF(COUNTIF(T4:T11216,"błędny urząd")<>0,"ŹLE","") ->  | U3: =IF(COUNTIF(U4:U11216,"ujemny plan")<>0,"ŹLE","") -> 
A4: I | B4: TRANSPORT I KOMUNIKACJA | C4: I sfera | D4: T | J4: =SUM(J197,J5) -> 13299556 | K4: 13299556 | L4: 20000 | M4: 29978 | N4: 20000 | O4: 29978 | P4: 13309534 | Q4: 13309534 | R4: =IF(SUM(J4:Q4)>0,"Tak","") -> Tak | S4: =IF(SUM(L4:O4)>0,"Tak","") -> Tak | T4: =IF(OR(J4<K4,P4<Q4,L4<N4,M4<O4),"błędny urząd","") ->  | U4: =IF(OR(J4<0,K4<0,P4<0,Q4<0),"ujemny plan","") -> 
A5: I/1 | B5: Komunikacja zbiorowa | C5: 1 program | D5: T | J5: =SUM(J177,J164,J38,J6) -> 0 | K5: 0 | L5: 0 | M5: 0 | N5: 0 | O5: 0 | P5: 0 | Q5: 0
A6: B/I/1/1 | B6: Zakup usług komunikacji miejskiej | C6: 1 zadanie | D6: T | J6: =SUM(J34,J30,J26,J19,J11,J7) -> 0 | K6: 0 | L6: 0 | M6: 0 | N6: 0 | O6: 0 | P6: 0 | Q6: 0
A7: B/I/1/1/1 | B7: Metro Warszawskie | C7: 1 podzadanie | D7: T | E7: 600 | F7: 60004 | J7: =SUM(J8) -> 0 | K7: 0 | L7: 0 | M7: 0 | N7: 0 | O7: 0 | P7: 0 | Q7: 0
A8: B/I/1/1/1 | B8: Metro Warszawskie | C8: 1 podzadanie | D8: NIE | E8: 600 | F8: 60004 | J8: =SUM(J9:J10) -> 0 | K8: 0 | L8: 0 | M8: 0 | N8: 0 | O8: 0 | P8: 0 | Q8: 0
A9: B/I/1/1/1 | B9: Metro Warszawskie | C9: 1 podzadanie | D9: NIE | E9: 600 | F9: 60004 | G9: 4300 | H9: Zakup usług pozostałych | I9: GMMW | P9: =J9+M9-L9 -> 0 | Q9: =K9+O9-N9 -> 0 | R9: =IF(SUM(J9:Q9)>0,"Tak","") ->  | S9: =IF(SUM(L9:O9)>0,"Tak","") ->  | T9: =IF(OR(J9<K9,P9<Q9,L9<N9,M9<O9),"błędny urząd","") ->  | U9: =IF(OR(J9<0,K9<0,P9<0,Q9<0),"ujemny plan","") -> 
A10: B/I/1/1/1 | B10: Metro Warszawskie | C10: 1 podzadanie | D10: NIE | E10: 600 | F10: 60004 | G10: 4530 | H10: Podatek od towarów i usług (VAT) | I10: GMMW | P10: =J10+M10-L10 -> 0 | Q10: =K10+O10-N10 -> 0 | R10: =IF(SUM(J10:Q10)>0,"Tak","") ->  | S10: =IF(SUM(L10:O10)>0,"Tak","") ->  | T10: =IF(OR(J10<K10,P10<Q10,L10<N10,M10<O10),"błędny urząd","") ->  | U10: =IF(OR(J10<0,K10<0,P10<0,Q10<0),"ujemny plan","") -> 
A11: B/I/1/1/2 | B11: Miejskie Zakłady Autobusowe | C11: 2 podzadanie | D11: T | E11: 600 | F11: 60004 | J11: =SUM(J12) -> 0 | K11: 0 | L11: 0 | M11: 0 | N11: 0 | O11: 0 | P11: 0 | Q11: 0
A12: B/I/1/1/2 | B12: Miejskie Zakłady Autobusowe | C12: 2 podzadanie | D12: NIE | E12: 600 | F12: 60004 | J12: =SUM(J13:J18) -> 0 | K12: 0 | L12: 0 | M12: 0 | N12: 0 | O12: 0 | P12: 0 | Q12: 0
A13: B/I/1/1/2 | B13: Miejskie Zakłady Autobusowe | C13: 2 podzadanie | D13: NIE | E13: 600 | F13: 60004 | G13: 4300 | H13: Zakup usług pozostałych | I13: GUUW | P13: 0 | Q13: 0
A14: B/I/1/1/2 | B14: Miejskie Zakłady Autobusowe | C14: 2 podzadanie | D14: NIE | E14: 600 | F14: 60004 | G14: 4300 | H14: Zakup usług pozostałych | I14: GMMW | P14: 0 | Q14: 0
A15: B/I/1/1/2 | B15: Miejskie Zakłady Autobusowe | C15: 2 podzadanie | D15: NIE | E15: 600 | F15: 60004 | G15: 4300 | H15: Zakup usług pozostałych | I15: GPGM | P15: 0 | Q15: 0
A16: B/I/1/1/2 | B16: Miejskie Zakłady Autobusowe | C16: 2 podzadanie | D16: NIE | E16: 600 | F16: 60004 | G16: 4370 | H16: Zakup usług związanych z pomocą obywatelom Ukrainy | I16: GUUW | P16: 0 | Q16: 0
A17: B/I/1/1/2 | B17: Miejskie Zakłady Autobusowe | C17: 2 podzadanie | D17: NIE | E17: 600 | F17: 60004 | G17: 4530 | H17: Podatek od towarów i usług (VAT) | I17: GUUW | P17: 0 | Q17: 0
A18: B/I/1/1/2 | B18: Miejskie Zakłady Autobusowe | C18: 2 podzadanie | D18: NIE | E18: 600 | F18: 60004 | G18: 4530 | H18: Podatek od towarów i usług (VAT) | I18: GMMW | P18: 0 | Q18: 0
A19: B/I/1/1/3 | B19: Pozostali przewoźnicy autobusowi | C19: 3 podzadanie | D19: T | E19: 600 | F19: 60004 | J19: =SUM(J20) -> 0 | K19: 0 | L19: 0 | M19: 0 | N19: 0 | O19: 0 | P19: 0 | Q19: 0
A20: B/I/1/1/3 | B20: Pozostali przewoźnicy autobusowi | C20: 3 podzadanie | D20: NIE | E20: 600 | F20: 60004 | J20: =SUM(J21:J25) -> 0 | K20: 0 | L20: 0 | M20: 0 | N20: 0 | O20: 0 | P20: 0 | Q20: 0
A21: B/I/1/1/3 | B21: Pozostali przewoźnicy autobusowi | C21: 3 podzadanie | D21: NIE | E21: 600 | F21: 60004 | G21: 4300 | H21: Zakup usług pozostałych | I21: GUUW | P21: 0 | Q21: 0
A22: B/I/1/1/3 | B22: Pozostali przewoźnicy autobusowi | C22: 3 podzadanie | D22: NIE | E22: 600 | F22: 60004 | G22: 4300 | H22: Zakup usług pozostałych | I22: GMMW | P22: 0 | Q22: 0
A23: B/I/1/1/3 | B23: Pozostali przewoźnicy autobusowi | C23: 3 podzadanie | D23: NIE | E23: 600 | F23: 60004 | G23: 4370 | H23: Zakup usług związanych z pomocą obywatelom Ukrainy | I23: GUUW | P23: 0 | Q23: 0
A24: B/I/1/1/3 | B24: Pozostali przewoźnicy autobusowi | C24: 3 podzadanie | D24: NIE | E24: 600 | F24: 60004 | G24: 4530 | H24: Podatek od towarów i usług (VAT) | I24: GUUW | P24: 0 | Q24: 0
A25: B/I/1/1/3 | B25: Pozostali przewoźnicy autobusowi | C25: 3 podzadanie | D25: NIE | E25: 600 | F25: 60004 | G25: 4530 | H25: Podatek od towarów i usług (VAT) | I25: GMMW | P25: 0 | Q25: 0
A26: B/I/1/1/4 | B26: Szybka Kolej Miejska | C26: 4 podzadanie | D26: T | E26: 600 | F26: 60004 | J26: =SUM(J27) -> 0 | K26: 0 | L26: 0 | M26: 0 | N26: 0 | O26: 0 | P26: 0 | Q26: 0
A27: B/I/1/1/4 | B27: Szybka Kolej Miejska | C27: 4 podzadanie | D27: NIE | E27: 600 | F27: 60004 | J27: =SUM(J28:J29) -> 0 | K27: 0 | L27: 0 | M27: 0 | N27: 0 | O27: 0 | P27: 0 | Q27: 0
A28: B/I/1/1/4 | B28: Szybka Kolej Miejska | C28: 4 podzadanie | D28: NIE | E28: 600 | F28: 60004 | G28: 4300 | H28: Zakup usług pozostałych | I28: GMMW | P28: 0 | Q28: 0
A29: B/I/1/1/4 | B29: Szybka Kolej Miejska | C29: 4 podzadanie | D29: NIE | E29: 600 | F29: 60004 | G29: 4530 | H29: Podatek od towarów i usług (VAT) | I29: GMMW | P29: 0 | Q29: 0
A30: B/I/1/1/5 | B30: Tramwaje Warszawskie | C30: 5 podzadanie | D30: T | E30: 600 | F30: 60004 | J30: =SUM(J31) -> 0 | K30: 0 | L30: 0 | M30: 0 | N30: 0 | O30: 0 | P30: 0 | Q30: 0
A31: B/I/1/1/5 | B31: Tramwaje Warszawskie | C31: 5 podzadanie | D31: NIE | E31: 600 | F31: 60004 | J31: =SUM(J32:J33) -> 0 | K31: 0 | L31: 0 | M31: 0 | N31: 0 | O31: 0 | P31: 0 | Q31: 0
A32: B/I/1/1/5 | B32: Tramwaje Warszawskie | C32: 5 podzadanie | D32: NIE | E32: 600 | F32: 60004 | G32: 4300 | H32: Zakup usług pozostałych | I32: GMMW | P32: 0 | Q32: 0
A33: B/I/1/1/5 | B33: Tramwaje Warszawskie | C33: 5 podzadanie | D33: NIE | E33: 600 | F33: 60004 | G33: 4530 | H33: Podatek od towarów i usług (VAT) | I33: GMMW | P33: 0 | Q33: 0
A34: B/I/1/1/6 | B34: Pozostali przewoźnicy kolejowi | C34: 6 podzadanie | D34: T | E34: 600 | F34: 60004 | J34: =SUM(J35) -> 0 | K34: 0 | L34: 0 | M34: 0 | N34: 0 | O34: 0 | P34: 0 | Q34: 0
A35: B/I/1/1/6 | B35: Pozostali przewoźnicy kolejowi | C35: 6 podzadanie | D35: NIE | E35: 600 | F35: 60004 | J35: =SUM(J36:J37) -> 0 | K35: 0 | L35: 0 | M35: 0 | N35: 0 | O35: 0 | P35: 0 | Q35: 0
A36: B/I/1/1/6 | B36: Pozostali przewoźnicy kolejowi | C36: 6 podzadanie | D36: NIE | E36: 600 | F36: 60004 | G36: 4300 | H36: Zakup usług pozostałych | I36: GMMW | P36: 0 | Q36: 0
A37: B/I/1/1/6 | B37: Pozostali przewoźnicy kolejowi | C37: 6 podzadanie | D37: NIE | E37: 600 | F37: 60004 | G37: 4530 | H37: Podatek od towarów i usług (VAT) | I37: GMMW | P37: 0 | Q37: 0
A38: B/I/1/2 | B38: Zarządzanie komunikacją miejską | C38: 2 zadanie | D38: T | J38: =SUM(J123,J113,J39) -> 0 | K38: 0 | L38: 0 | M38: 0 | N38: 0 | O38: 0 | P38: 0 | Q38: 0
A39: B/I/1/2/1 | B39: Utrzymanie Zarządu Transportu Miejskiego, w tym obsługa inwestycji | C39: 1 podzadanie | D39: T | E39: 600 | F39: 60004 | J39: =SUM(J40) -> 0 | K39: 0 | L39: 0 | M39: 0 | N39: 0 | O39: 0 | P39: 0 | Q39: 0
A40: B/I/1/2/1 | B40: Utrzymanie Zarządu Transportu Miejskiego, w tym obsługa inwestycji | C40: 1 podzadanie | D40: NIE | E40: 600 | F40: 60004 | J40: =SUM(J41:J112) -> 0 | K40: 0 | L40: 0 | M40: 0 | N40: 0 | O40: 0 | P40: 0 | Q40: 0
A41: B/I/1/2/1 | B41: Utrzymanie Zarządu Transportu Miejskiego, w tym obsługa inwestycji | C41: 1 podzadanie | D41: NIE | E41: 600 | F41: 60004 | G41: 3020 | H41: Wydatki osobowe niezaliczone do wynagrodzeń | I41: GMMW | P41: 0 | Q41: 0
A42: B/I/1/2/1 | B42: Utrzymanie Zarządu Transportu Miejskiego, w tym obsługa inwestycji | C42: 1 podzadanie | D42: NIE | E42: 600 | F42: 60004 | G42: 4010 | H42: Wynagrodzenia osobowe pracowników | I42: GMMW | P42: 0 | Q42: 0
A43: B/I/1/2/1 | B43: Utrzymanie Zarządu Transportu Miejskiego, w tym obsługa inwestycji | C43: 1 podzadanie | D43: NIE | E43: 600 | F43: 60004 | G43: 4017 | H43: Wynagrodzenia osobowe pracowników | I43: SFUE/23/6 | P43: 0 | Q43: 0
A44: B/I/1/2/1 | B44: Utrzymanie Zarządu Transportu Miejskiego, w tym obsługa inwestycji | C44: 1 podzadanie | D44: NIE | E44: 600 | F44: 60004 | G44: 4018 | H44: Wynagrodzenia osobowe pracowników | I44: SFUE/8/50 | P44: 0 | Q44: 0
A45: B/I/1/2/1 | B45: Utrzymanie Zarządu Transportu Miejskiego, w tym obsługa inwestycji | C45: 1 podzadanie | D45: NIE | E45: 600 | F45: 60004 | G45: 4018 | H45: Wynagrodzenia osobowe pracowników | I45: SFUE/8/59 | P45: 0 | Q45: 0
A46: B/I/1/2/1 | B46: Utrzymanie Zarządu Transportu Miejskiego, w tym obsługa inwestycji | C46: 1 podzadanie | D46: NIE | E46: 600 | F46: 60004 | G46: 4018 | H46: Wynagrodzenia osobowe pracowników | I46: SFUE/8/60 | P46: 0 | Q46: 0
A47: B/I/1/2/1 | B47: Utrzymanie Zarządu Transportu Miejskiego, w tym obsługa inwestycji | C47: 1 podzadanie | D47: NIE | E47: 600 | F47: 60004 | G47: 4018 | H47: Wynagrodzenia osobowe pracowników | I47: SFUE/8/61 | P47: 0 | Q47: 0
A48: B/I/1/2/1 | B48: Utrzymanie Zarządu Transportu Miejskiego, w tym obsługa inwestycji | C48: 1 podzadanie | D48: NIE | E48: 600 | F48: 60004 | G48: 4019 | H48: Wynagrodzenia osobowe pracowników | I48: SFUE/23/6 | P48: 0 | Q48: 0
A49: B/I/1/2/1 | B49: Utrzymanie Zarządu Transportu Miejskiego, w tym obsługa inwestycji | C49: 1 podzadanie | D49: NIE | E49: 600 | F49: 60004 | G49: 4019 | H49: Wynagrodzenia osobowe pracowników | I49: SFUE/8/60 | P49: 0 | Q49: 0
A50: B/I/1/2/1 | B50: Utrzymanie Zarządu Transportu Miejskiego, w tym obsługa inwestycji | C50: 1 podzadanie | D50: NIE | E50: 600 | F50: 60004 | G50: 4019 | H50: Wynagrodzenia osobowe pracowników | I50: SFUE/8/61 | P50: 0 | Q50: 0
A51: B/I/1/2/1 | B51: Utrzymanie Zarządu Transportu Miejskiego, w tym obsługa inwestycji | C51: 1 podzadanie | D51: NIE | E51: 600 | F51: 60004 | G51: 4040 | H51: Dodatkowe wynagrodzenie roczne | I51: GMMW | P51: 0 | Q51: 0
A52: B/I/1/2/1 | B52: Utrzymanie Zarządu Transportu Miejskiego, w tym obsługa inwestycji | C52: 1 podzadanie | D52: NIE | E52: 600 | F52: 60004 | G52: 4047 | H52: Dodatkowe wynagrodzenie roczne | I52: SFUE/23/6 | P52: 0 | Q52: 0
A53: B/I/1/2/1 | B53: Utrzymanie Zarządu Transportu Miejskiego, w tym obsługa inwestycji | C53: 1 podzadanie | D53: NIE | E53: 600 | F53: 60004 | G53: 4048 | H53: Dodatkowe wynagrodzenie roczne | I53: SFUE/8/59 | P53: 0 | Q53: 0
A54: B/I/1/2/1 | B54: Utrzymanie Zarządu Transportu Miejskiego, w tym obsługa inwestycji | C54: 1 podzadanie | D54: NIE | E54: 600 | F54: 60004 | G54: 4049 | H54: Dodatkowe wynagrodzenie roczne | I54: SFUE/23/6 | P54: 0 | Q54: 0
A55: B/I/1/2/1 | B55: Utrzymanie Zarządu Transportu Miejskiego, w tym obsługa inwestycji | C55: 1 podzadanie | D55: NIE | E55: 600 | F55: 60004 | G55: 4110 | H55: Składki na ubezpieczenia społeczne | I55: GMMW | P55: 0 | Q55: 0
A56: B/I/1/2/1 | B56: Utrzymanie Zarządu Transportu Miejskiego, w tym obsługa inwestycji | C56: 1 podzadanie | D56: NIE | E56: 600 | F56: 60004 | G56: 4117 | H56: Składki na ubezpieczenia społeczne | I56: SFUE/23/6 | P56: 0 | Q56: 0
A57: B/I/1/2/1 | B57: Utrzymanie Zarządu Transportu Miejskiego, w tym obsługa inwestycji | C57: 1 podzadanie | D57: NIE | E57: 600 | F57: 60004 | G57: 4118 | H57: Składki na ubezpieczenia społeczne | I57: SFUE/8/50 | P57: 0 | Q57: 0
A58: B/I/1/2/1 | B58: Utrzymanie Zarządu Transportu Miejskiego, w tym obsługa inwestycji | C58: 1 podzadanie | D58: NIE | E58: 600 | F58: 60004 | G58: 4118 | H58: Składki na ubezpieczenia społeczne | I58: SFUE/8/59 | P58: 0 | Q58: 0
A59: B/I/1/2/1 | B59: Utrzymanie Zarządu Transportu Miejskiego, w tym obsługa inwestycji | C59: 1 podzadanie | D59: NIE | E59: 600 | F59: 60004 | G59: 4118 | H59: Składki na ubezpieczenia społeczne | I59: SFUE/8/60 | P59: 0 | Q59: 0
A60: B/I/1/2/1 | B60: Utrzymanie Zarządu Transportu Miejskiego, w tym obsługa inwestycji | C60: 1 podzadanie | D60: NIE | E60: 600 | F60: 60004 | G60: 4118 | H60: Składki na ubezpieczenia społeczne | I60: SFUE/8/61 | P60: 0 | Q60: 0
A61: B/I/1/2/1 | B61: Utrzymanie Zarządu Transportu Miejskiego, w tym obsługa inwestycji | C61: 1 podzadanie | D61: NIE | E61: 600 | F61: 60004 | G61: 4119 | H61: Składki na ubezpieczenia społeczne | I61: SFUE/23/6 | P61: 0 | Q61: 0
A62: B/I/1/2/1 | B62: Utrzymanie Zarządu Transportu Miejskiego, w tym obsługa inwestycji | C62: 1 podzadanie | D62: NIE | E62: 600 | F62: 60004 | G62: 4119 | H62: Składki na ubezpieczenia społeczne | I62: SFUE/8/60 | P62: 0 | Q62: 0
A63: B/I/1/2/1 | B63: Utrzymanie Zarządu Transportu Miejskiego, w tym obsługa inwestycji | C63: 1 podzadanie | D63: NIE | E63: 600 | F63: 60004 | G63: 4119 | H63: Składki na ubezpieczenia społeczne | I63: SFUE/8/61 | P63: 0 | Q63: 0
A64: B/I/1/2/1 | B64: Utrzymanie Zarządu Transportu Miejskiego, w tym obsługa inwestycji | C64: 1 podzadanie | D64: NIE | E64: 600 | F64: 60004 | G64: 4120 | H64: Składki na Fundusz Pracy oraz Fundusz Solidarnościowy | I64: GMMW | P64: 0 | Q64: 0
A65: B/I/1/2/1 | B65: Utrzymanie Zarządu Transportu Miejskiego, w tym obsługa inwestycji | C65: 1 podzadanie | D65: NIE | E65: 600 | F65: 60004 | G65: 4127 | H65: Składki na Fundusz Pracy oraz Fundusz Solidarnościowy | I65: SFUE/23/6 | P65: 0 | Q65: 0
A66: B/I/1/2/1 | B66: Utrzymanie Zarządu Transportu Miejskiego, w tym obsługa inwestycji | C66: 1 podzadanie | D66: NIE | E66: 600 | F66: 60004 | G66: 4128 | H66: Składki na Fundusz Pracy oraz Fundusz Solidarnościowy | I66: SFUE/8/50 | P66: 0 | Q66: 0
A67: B/I/1/2/1 | B67: Utrzymanie Zarządu Transportu Miejskiego, w tym obsługa inwestycji | C67: 1 podzadanie | D67: NIE | E67: 600 | F67: 60004 | G67: 4128 | H67: Składki na Fundusz Pracy oraz Fundusz Solidarnościowy | I67: SFUE/8/59 | P67: 0 | Q67: 0
A68: B/I/1/2/1 | B68: Utrzymanie Zarządu Transportu Miejskiego, w tym obsługa inwestycji | C68: 1 podzadanie | D68: NIE | E68: 600 | F68: 60004 | G68: 4128 | H68: Składki na Fundusz Pracy oraz Fundusz Solidarnościowy | I68: SFUE/8/60 | P68: 0 | Q68: 0
A69: B/I/1/2/1 | B69: Utrzymanie Zarządu Transportu Miejskiego, w tym obsługa inwestycji | C69: 1 podzadanie | D69: NIE | E69: 600 | F69: 60004 | G69: 4128 | H69: Składki na Fundusz Pracy oraz Fundusz Solidarnościowy | I69: SFUE/8/61 | P69: 0 | Q69: 0
A70: B/I/1/2/1 | B70: Utrzymanie Zarządu Transportu Miejskiego, w tym obsługa inwestycji | C70: 1 podzadanie | D70: NIE | E70: 600 | F70: 60004 | G70: 4129 | H70: Składki na Fundusz Pracy oraz Fundusz Solidarnościowy | I70: SFUE/23/6 | P70: 0 | Q70: 0
A71: B/I/1/2/1 | B71: Utrzymanie Zarządu Transportu Miejskiego, w tym obsługa inwestycji | C71: 1 podzadanie | D71: NIE | E71: 600 | F71: 60004 | G71: 4129 | H71: Składki na Fundusz Pracy oraz Fundusz Solidarnościowy | I71: SFUE/8/60 | P71: 0 | Q71: 0
A72: B/I/1/2/1 | B72: Utrzymanie Zarządu Transportu Miejskiego, w tym obsługa inwestycji | C72: 1 podzadanie | D72: NIE | E72: 600 | F72: 60004 | G72: 4129 | H72: Składki na Fundusz Pracy oraz Fundusz Solidarnościowy | I72: SFUE/8/61 | P72: 0 | Q72: 0
A73: B/I/1/2/1 | B73: Utrzymanie Zarządu Transportu Miejskiego, w tym obsługa inwestycji | C73: 1 podzadanie | D73: NIE | E73: 600 | F73: 60004 | G73: 4140 | H73: Wpłaty na Państwowy Fundusz Rehabilitacji Osób Niepełnosprawnych | I73: GMMW | P73: 0 | Q73: 0
A74: B/I/1/2/1 | B74: Utrzymanie Zarządu Transportu Miejskiego, w tym obsługa inwestycji | C74: 1 podzadanie | D74: NIE | E74: 600 | F74: 60004 | G74: 4170 | H74: Wynagrodzenia bezosobowe | I74: GMMW | P74: =J74+M74-L74 -> 0 | Q74: =K74+O74-N74 -> 0 | R74: =IF(SUM(J74:Q74)>0,"Tak","") ->  | S74: =IF(SUM(L74:O74)>0,"Tak","") ->  | T74: =IF(OR(J74<K74,P74<Q74,L74<N74,M74<O74),"błędny urząd","") ->  | U74: =IF(OR(J74<0,K74<0,P74<0,Q74<0),"ujemny plan","") -> 
A75: B/I/1/2/1 | B75: Utrzymanie Zarządu Transportu Miejskiego, w tym obsługa inwestycji | C75: 1 podzadanie | D75: NIE | E75: 600 | F75: 60004 | G75: 4190 | H75: Nagrody konkursowe | I75: GMMW | P75: 0 | Q75: 0
A76: B/I/1/2/1 | B76: Utrzymanie Zarządu Transportu Miejskiego, w tym obsługa inwestycji | C76: 1 podzadanie | D76: NIE | E76: 600 | F76: 60004 | G76: 4210 | H76: Zakup materiałów i wyposażenia | I76: GMMW/C | P76: 0 | Q76: 0
A77: B/I/1/2/1 | B77: Utrzymanie Zarządu Transportu Miejskiego, w tym obsługa inwestycji | C77: 1 podzadanie | D77: NIE | E77: 600 | F77: 60004 | G77: 4210 | H77: Zakup materiałów i wyposażenia | I77: GMMW | P77: 0 | Q77: 0
A78: B/I/1/2/1 | B78: Utrzymanie Zarządu Transportu Miejskiego, w tym obsługa inwestycji | C78: 1 podzadanie | D78: NIE | E78: 600 | F78: 60004 | G78: 4260 | H78: Zakup energii | I78: GMMW | P78: 0 | Q78: 0
A79: B/I/1/2/1 | B79: Utrzymanie Zarządu Transportu Miejskiego, w tym obsługa inwestycji | C79: 1 podzadanie | D79: NIE | E79: 600 | F79: 60004 | G79: 4270 | H79: Zakup usług remontowych | I79: GMMW | P79: 0 | Q79: 0
A80: B/I/1/2/1 | B80: Utrzymanie Zarządu Transportu Miejskiego, w tym obsługa inwestycji | C80: 1 podzadanie | D80: NIE | E80: 600 | F80: 60004 | G80: 4280 | H80: Zakup usług zdrowotnych | I80: GMMW/C | P80: 0 | Q80: 0
A81: B/I/1/2/1 | B81: Utrzymanie Zarządu Transportu Miejskiego, w tym obsługa inwestycji | C81: 1 podzadanie | D81: NIE | E81: 600 | F81: 60004 | G81: 4280 | H81: Zakup usług zdrowotnych | I81: GMMW | P81: 0 | Q81: 0
A82: B/I/1/2/1 | B82: Utrzymanie Zarządu Transportu Miejskiego, w tym obsługa inwestycji | C82: 1 podzadanie | D82: NIE | E82: 600 | F82: 60004 | G82: 4300 | H82: Zakup usług pozostałych | I82: GMMW | P82: 0 | Q82: 0
A83: B/I/1/2/1 | B83: Utrzymanie Zarządu Transportu Miejskiego, w tym obsługa inwestycji | C83: 1 podzadanie | D83: NIE | E83: 600 | F83: 60004 | G83: 4360 | H83: Opłaty z tytułu zakupu usług telekomunikacyjnych | I83: GMMW | P83: 0 | Q83: 0
A84: B/I/1/2/1 | B84: Utrzymanie Zarządu Transportu Miejskiego, w tym obsługa inwestycji | C84: 1 podzadanie | D84: NIE | E84: 600 | F84: 60004 | G84: 4380 | H84: Zakup usług obejmujących tłumaczenia | I84: GMMW | P84: 0 | Q84: 0
A85: B/I/1/2/1 | B85: Utrzymanie Zarządu Transportu Miejskiego, w tym obsługa inwestycji | C85: 1 podzadanie | D85: NIE | E85: 600 | F85: 60004 | G85: 4390 | H85: Zakup usług obejmujących wykonanie ekspertyz, analiz i opinii | I85: GMMW | P85: 0 | Q85: 0
A86: B/I/1/2/1 | B86: Utrzymanie Zarządu Transportu Miejskiego, w tym obsługa inwestycji | C86: 1 podzadanie | D86: NIE | E86: 600 | F86: 60004 | G86: 4400 | H86: Opłaty za administrowanie i czynsze za budynki, lokale i pomieszczenia garażowe | I86: GMMW | P86: 0 | Q86: 0
A87: B/I/1/2/1 | B87: Utrzymanie Zarządu Transportu Miejskiego, w tym obsługa inwestycji | C87: 1 podzadanie | D87: NIE | E87: 600 | F87: 60004 | G87: 4410 | H87: Podróże służbowe krajowe | I87: GMMW | P87: 0 | Q87: 0
A88: B/I/1/2/1 | B88: Utrzymanie Zarządu Transportu Miejskiego, w tym obsługa inwestycji | C88: 1 podzadanie | D88: NIE | E88: 600 | F88: 60004 | G88: 4420 | H88: Podróże służbowe zagraniczne | I88: GMMW | P88: 0 | Q88: 0
A89: B/I/1/2/1 | B89: Utrzymanie Zarządu Transportu Miejskiego, w tym obsługa inwestycji | C89: 1 podzadanie | D89: NIE | E89: 600 | F89: 60004 | G89: 4428 | H89: Podróże służbowe zagraniczne | I89: SFUE/8/50 | P89: 0 | Q89: 0
A90: B/I/1/2/1 | B90: Utrzymanie Zarządu Transportu Miejskiego, w tym obsługa inwestycji | C90: 1 podzadanie | D90: NIE | E90: 600 | F90: 60004 | G90: 4428 | H90: Podróże służbowe zagraniczne | I90: SFUE/8/59 | P90: 0 | Q90: 0
A91: B/I/1/2/1 | B91: Utrzymanie Zarządu Transportu Miejskiego, w tym obsługa inwestycji | C91: 1 podzadanie | D91: NIE | E91: 600 | F91: 60004 | G91: 4428 | H91: Podróże służbowe zagraniczne | I91: SFUE/8/60 | P91: 0 | Q91: 0
A92: B/I/1/2/1 | B92: Utrzymanie Zarządu Transportu Miejskiego, w tym obsługa inwestycji | C92: 1 podzadanie | D92: NIE | E92: 600 | F92: 60004 | G92: 4428 | H92: Podróże służbowe zagraniczne | I92: SFUE/8/61 | P92: 0 | Q92: 0
A93: B/I/1/2/1 | B93: Utrzymanie Zarządu Transportu Miejskiego, w tym obsługa inwestycji | C93: 1 podzadanie | D93: NIE | E93: 600 | F93: 60004 | G93: 4429 | H93: Podróże służbowe zagraniczne | I93: SFUE/8/60 | P93: 0 | Q93: 0
A94: B/I/1/2/1 | B94: Utrzymanie Zarządu Transportu Miejskiego, w tym obsługa inwestycji | C94: 1 podzadanie | D94: NIE | E94: 600 | F94: 60004 | G94: 4429 | H94: Podróże służbowe zagraniczne | I94: SFUE/8/61 | P94: 0 | Q94: 0
A95: B/I/1/2/1 | B95: Utrzymanie Zarządu Transportu Miejskiego, w tym obsługa inwestycji | C95: 1 podzadanie | D95: NIE | E95: 600 | F95: 60004 | G95: 4430 | H95: Różne opłaty i składki | I95: GMMW | P95: 0 | Q95: 0
A96: B/I/1/2/1 | B96: Utrzymanie Zarządu Transportu Miejskiego, w tym obsługa inwestycji | C96: 1 podzadanie | D96: NIE | E96: 600 | F96: 60004 | G96: 4440 | H96: Odpisy na zakładowy fundusz świadczeń socjalnych | I96: GMMW | P96: 0 | Q96: 0
A97: B/I/1/2/1 | B97: Utrzymanie Zarządu Transportu Miejskiego, w tym obsługa inwestycji | C97: 1 podzadanie | D97: NIE | E97: 600 | F97: 60004 | G97: 4480 | H97: Podatek od nieruchomości | I97: GMMW | P97: 0 | Q97: 0
A98: B/I/1/2/1 | B98: Utrzymanie Zarządu Transportu Miejskiego, w tym obsługa inwestycji | C98: 1 podzadanie | D98: NIE | E98: 600 | F98: 60004 | G98: 4510 | H98: Opłaty na rzecz budżetu państwa | I98: GMMW | P98: 0 | Q98: 0
A99: B/I/1/2/1 | B99: Utrzymanie Zarządu Transportu Miejskiego, w tym obsługa inwestycji | C99: 1 podzadanie | D99: NIE | E99: 600 | F99: 60004 | G99: 4530 | H99: Podatek od towarów i usług (VAT) | I99: GMMW/C | P99: 0 | Q99: 0
A100: B/I/1/2/1 | B100: Utrzymanie Zarządu Transportu Miejskiego, w tym obsługa inwestycji | C100: 1 podzadanie | D100: NIE | E100: 600 | F100: 60004 | G100: 4530 | H100: Podatek od towarów i usług (VAT) | I100: GMMW | P100: 0 | Q100: 0
A101: B/I/1/2/1 | B101: Utrzymanie Zarządu Transportu Miejskiego, w tym obsługa inwestycji | C101: 1 podzadanie | D101: NIE | E101: 600 | F101: 60004 | G101: 4540 | H101: Składki do organizacji międzynarodowych | I101: GMMW | P101: 0 | Q101: 0
A102: B/I/1/2/1 | B102: Utrzymanie Zarządu Transportu Miejskiego, w tym obsługa inwestycji | C102: 1 podzadanie | D102: NIE | E102: 600 | F102: 60004 | G102: 4590 | H102: Kary i odszkodowania wypłacane na rzecz osób fizycznych | I102: GMMW | P102: 0 | Q102: 0
A103: B/I/1/2/1 | B103: Utrzymanie Zarządu Transportu Miejskiego, w tym obsługa inwestycji | C103: 1 podzadanie | D103: NIE | E103: 600 | F103: 60004 | G103: 4600 | H103: Kary, odszkodowania i grzywny wypłacane na rzecz osób prawnych i innych jednostek organizacyjnych | I103: GMMW | P103: 0 | Q103: 0
A104: B/I/1/2/1 | B104: Utrzymanie Zarządu Transportu Miejskiego, w tym obsługa inwestycji | C104: 1 podzadanie | D104: NIE | E104: 600 | F104: 60004 | G104: 4610 | H104: Koszty postępowania sądowego i prokuratorskiego | I104: GMMW | P104: 0 | Q104: 0
A105: B/I/1/2/1 | B105: Utrzymanie Zarządu Transportu Miejskiego, w tym obsługa inwestycji | C105: 1 podzadanie | D105: NIE | E105: 600 | F105: 60004 | G105: 4700 | H105: Szkolenia pracowników niebędących członkami korpusu służby cywilnej | I105: GMMW/C | P105: 0 | Q105: 0
A106: B/I/1/2/1 | B106: Utrzymanie Zarządu Transportu Miejskiego, w tym obsługa inwestycji | C106: 1 podzadanie | D106: NIE | E106: 600 | F106: 60004 | G106: 4700 | H106: Szkolenia pracowników niebędących członkami korpusu służby cywilnej | I106: GMMW | P106: 0 | Q106: 0
A107: B/I/1/2/1 | B107: Utrzymanie Zarządu Transportu Miejskiego, w tym obsługa inwestycji | C107: 1 podzadanie | D107: NIE | E107: 600 | F107: 60004 | G107: 4710 | H107: Wpłaty na PPK finansowane przez podmiot zatrudniający | I107: GMMW | P107: 0 | Q107: 0
A108: B/I/1/2/1 | B108: Utrzymanie Zarządu Transportu Miejskiego, w tym obsługa inwestycji | C108: 1 podzadanie | D108: NIE | E108: 600 | F108: 60004 | G108: 4718 | H108: Wpłaty na PPK finansowane przez podmiot zatrudniający | I108: SFUE/8/50 | P108: 0 | Q108: 0
A109: B/I/1/2/1 | B109: Utrzymanie Zarządu Transportu Miejskiego, w tym obsługa inwestycji | C109: 1 podzadanie | D109: NIE | E109: 600 | F109: 60004 | G109: 4718 | H109: Wpłaty na PPK finansowane przez podmiot zatrudniający | I109: SFUE/8/59 | P109: 0 | Q109: 0
A110: B/I/1/2/1 | B110: Utrzymanie Zarządu Transportu Miejskiego, w tym obsługa inwestycji | C110: 1 podzadanie | D110: NIE | E110: 600 | F110: 60004 | G110: 4718 | H110: Wpłaty na PPK finansowane przez podmiot zatrudniający | I110: SFUE/8/61 | P110: 0 | Q110: 0
A111: B/I/1/2/1 | B111: Utrzymanie Zarządu Transportu Miejskiego, w tym obsługa inwestycji | C111: 1 podzadanie | D111: NIE | E111: 600 | F111: 60004 | G111: 4719 | H111: Wpłaty na PPK finansowane przez podmiot zatrudniający | I111: SFUE/8/61 | P111: 0 | Q111: 0
A112: B/I/1/2/1 | B112: Utrzymanie Zarządu Transportu Miejskiego, w tym obsługa inwestycji | C112: 1 podzadanie | D112: NIE | E112: 600 | F112: 60004 | G112: 4950 | H112: Różnice kursowe | I112: GMMW | P112: 0 | Q112: 0
A113: B/I/1/2/2 | B113: Utrzymanie i obsługa systemu biletowego | C113: 2 podzadanie | D113: T | E113: 600 | F113: 60004 | J113: =SUM(J114) -> 0 | K113: 0 | L113: 0 | M113: 0 | N113: 0 | O113: 0 | P113: 0 | Q113: 0
A114: B/I/1/2/2 | B114: Utrzymanie i obsługa systemu biletowego | C114: 2 podzadanie | D114: NIE | E114: 600 | F114: 60004 | J114: =SUM(J115:J122) -> 0 | K114: 0 | L114: 0 | M114: 0 | N114: 0 | O114: 0 | P114: 0 | Q114: 0
A115: B/I/1/2/2 | B115: Utrzymanie i obsługa systemu biletowego | C115: 2 podzadanie | D115: NIE | E115: 600 | F115: 60004 | G115: 4190 | H115: Nagrody konkursowe | I115: GMMW | P115: 0 | Q115: 0
A116: B/I/1/2/2 | B116: Utrzymanie i obsługa systemu biletowego | C116: 2 podzadanie | D116: NIE | E116: 600 | F116: 60004 | G116: 4210 | H116: Zakup materiałów i wyposażenia | I116: GMMW | P116: 0 | Q116: 0
A117: B/I/1/2/2 | B117: Utrzymanie i obsługa systemu biletowego | C117: 2 podzadanie | D117: NIE | E117: 600 | F117: 60004 | G117: 4260 | H117: Zakup energii | I117: GMMW | P117: 0 | Q117: 0
A118: B/I/1/2/2 | B118: Utrzymanie i obsługa systemu biletowego | C118: 2 podzadanie | D118: NIE | E118: 600 | F118: 60004 | G118: 4270 | H118: Zakup usług remontowych | I118: GMMW | P118: 0 | Q118: 0
A119: B/I/1/2/2 | B119: Utrzymanie i obsługa systemu biletowego | C119: 2 podzadanie | D119: NIE | E119: 600 | F119: 60004 | G119: 4300 | H119: Zakup usług pozostałych | I119: GMMW | P119: 0 | Q119: 0
A120: B/I/1/2/2 | B120: Utrzymanie i obsługa systemu biletowego | C120: 2 podzadanie | D120: NIE | E120: 600 | F120: 60004 | G120: 4400 | H120: Opłaty za administrowanie i czynsze za budynki, lokale i pomieszczenia garażowe | I120: GMMW | P120: 0 | Q120: 0
A121: B/I/1/2/2 | B121: Utrzymanie i obsługa systemu biletowego | C121: 2 podzadanie | D121: NIE | E121: 600 | F121: 60004 | G121: 4530 | H121: Podatek od towarów i usług (VAT) | I121: GMMW | P121: 0 | Q121: 0
A122: B/I/1/2/2 | B122: Utrzymanie i obsługa systemu biletowego | C122: 2 podzadanie | D122: NIE | E122: 600 | F122: 60004 | G122: 4610 | H122: Koszty postępowania sądowego i prokuratorskiego | I122: GMMW | P122: 0 | Q122: 0
A123: B/I/1/2/3 | B123: Organizacja komunikacji, marketing, nadzór i kontrola ruchu | C123: 3 podzadanie | D123: T | J123: =SUM(J161,J154,J124) -> 0 | K123: 0 | L123: 0 | M123: 0 | N123: 0 | O123: 0 | P123: 0 | Q123: 0
A124: B/I/1/2/3 | B124: Organizacja komunikacji, marketing, nadzór i kontrola ruchu | C124: 3 podzadanie | D124: NIE | E124: 600 | F124: 60004 | J124: =SUM(J125:J153) -> 0 | K124: 0 | L124: 0 | M124: 0 | N124: 0 | O124: 0 | P124: 0 | Q124: 0
A125: B/I/1/2/3 | B125: Organizacja komunikacji, marketing, nadzór i kontrola ruchu | C125: 3 podzadanie | D125: NIE | E125: 600 | F125: 60004 | G125: 3020 | H125: Wydatki osobowe niezaliczone do wynagrodzeń | I125: GMMW | P125: 0 | Q125: 0
A126: B/I/1/2/3 | B126: Organizacja komunikacji, marketing, nadzór i kontrola ruchu | C126: 3 podzadanie | D126: NIE | E126: 600 | F126: 60004 | G126: 4210 | H126: Zakup materiałów i wyposażenia | I126: GMMW | P126: 0 | Q126: 0
A127: B/I/1/2/3 | B127: Organizacja komunikacji, marketing, nadzór i kontrola ruchu | C127: 3 podzadanie | D127: NIE | E127: 600 | F127: 60004 | G127: 4218 | H127: Zakup materiałów i wyposażenia | I127: SFUE/8/50 | P127: 0 | Q127: 0
A128: B/I/1/2/3 | B128: Organizacja komunikacji, marketing, nadzór i kontrola ruchu | C128: 3 podzadanie | D128: NIE | E128: 600 | F128: 60004 | G128: 4218 | H128: Zakup materiałów i wyposażenia | I128: SFUE/8/59 | P128: 0 | Q128: 0
A129: B/I/1/2/3 | B129: Organizacja komunikacji, marketing, nadzór i kontrola ruchu | C129: 3 podzadanie | D129: NIE | E129: 600 | F129: 60004 | G129: 4218 | H129: Zakup materiałów i wyposażenia | I129: SFUE/8/60 | P129: 0 | Q129: 0
A130: B/I/1/2/3 | B130: Organizacja komunikacji, marketing, nadzór i kontrola ruchu | C130: 3 podzadanie | D130: NIE | E130: 600 | F130: 60004 | G130: 4218 | H130: Zakup materiałów i wyposażenia | I130: SFUE/8/61 | P130: 0 | Q130: 0
A131: B/I/1/2/3 | B131: Organizacja komunikacji, marketing, nadzór i kontrola ruchu | C131: 3 podzadanie | D131: NIE | E131: 600 | F131: 60004 | G131: 4219 | H131: Zakup materiałów i wyposażenia | I131: SFUE/8/61 | P131: 0 | Q131: 0
A132: B/I/1/2/3 | B132: Organizacja komunikacji, marketing, nadzór i kontrola ruchu | C132: 3 podzadanie | D132: NIE | E132: 600 | F132: 60004 | G132: 4270 | H132: Zakup usług remontowych | I132: GMMW | P132: 0 | Q132: 0
A133: B/I/1/2/3 | B133: Organizacja komunikacji, marketing, nadzór i kontrola ruchu | C133: 3 podzadanie | D133: NIE | E133: 600 | F133: 60004 | G133: 4300 | H133: Zakup usług pozostałych | I133: GMMW | P133: 0 | Q133: 0
A134: B/I/1/2/3 | B134: Organizacja komunikacji, marketing, nadzór i kontrola ruchu | C134: 3 podzadanie | D134: NIE | E134: 600 | F134: 60004 | G134: 4307 | H134: Zakup usług pozostałych | I134: SFUE/23/6 | P134: 0 | Q134: 0
A135: B/I/1/2/3 | B135: Organizacja komunikacji, marketing, nadzór i kontrola ruchu | C135: 3 podzadanie | D135: NIE | E135: 600 | F135: 60004 | G135: 4308 | H135: Zakup usług pozostałych | I135: SFUE/8/50 | P135: 0 | Q135: 0
A136: B/I/1/2/3 | B136: Organizacja komunikacji, marketing, nadzór i kontrola ruchu | C136: 3 podzadanie | D136: NIE | E136: 600 | F136: 60004 | G136: 4308 | H136: Zakup usług pozostałych | I136: SFUE/8/59 | P136: 0 | Q136: 0
A137: B/I/1/2/3 | B137: Organizacja komunikacji, marketing, nadzór i kontrola ruchu | C137: 3 podzadanie | D137: NIE | E137: 600 | F137: 60004 | G137: 4308 | H137: Zakup usług pozostałych | I137: SFUE/8/60 | P137: 0 | Q137: 0
A138: B/I/1/2/3 | B138: Organizacja komunikacji, marketing, nadzór i kontrola ruchu | C138: 3 podzadanie | D138: NIE | E138: 600 | F138: 60004 | G138: 4308 | H138: Zakup usług pozostałych | I138: SFUE/8/61 | P138: =J138+M138-L138 -> 0 | Q138: =K138+O138-N138 -> 0 | R138: =IF(SUM(J138:Q138)>0,"Tak","") ->  | S138: =IF(SUM(L138:O138)>0,"Tak","") ->  | T138: =IF(OR(J138<K138,P138<Q138,L138<N138,M138<O138),"błędny urząd","") ->  | U138: =IF(OR(J138<0,K138<0,P138<0,Q138<0),"ujemny plan","") -> 
A139: B/I/1/2/3 | B139: Organizacja komunikacji, marketing, nadzór i kontrola ruchu | C139: 3 podzadanie | D139: NIE | E139: 600 | F139: 60004 | G139: 4309 | H139: Zakup usług pozostałych | I139: SFUE/23/6 | P139: 0 | Q139: 0
A140: B/I/1/2/3 | B140: Organizacja komunikacji, marketing, nadzór i kontrola ruchu | C140: 3 podzadanie | D140: NIE | E140: 600 | F140: 60004 | G140: 4309 | H140: Zakup usług pozostałych | I140: SFUE/8/61 | P140: 0 | Q140: 0
A141: B/I/1/2/3 | B141: Organizacja komunikacji, marketing, nadzór i kontrola ruchu | C141: 3 podzadanie | D141: NIE | E141: 600 | F141: 60004 | G141: 4388 | H141: Zakup usług obejmujących tłumaczenia | I141: SFUE/8/50 | P141: 0 | Q141: 0
A142: B/I/1/2/3 | B142: Organizacja komunikacji, marketing, nadzór i kontrola ruchu | C142: 3 podzadanie | D142: NIE | E142: 600 | F142: 60004 | G142: 4388 | H142: Zakup usług obejmujących tłumaczenia | I142: SFUE/8/59 | P142: 0 | Q142: 0
A143: B/I/1/2/3 | B143: Organizacja komunikacji, marketing, nadzór i kontrola ruchu | C143: 3 podzadanie | D143: NIE | E143: 600 | F143: 60004 | G143: 4388 | H143: Zakup usług obejmujących tłumaczenia | I143: SFUE/8/60 | P143: 0 | Q143: 0
A144: B/I/1/2/3 | B144: Organizacja komunikacji, marketing, nadzór i kontrola ruchu | C144: 3 podzadanie | D144: NIE | E144: 600 | F144: 60004 | G144: 4388 | H144: Zakup usług obejmujących tłumaczenia | I144: SFUE/8/61 | P144: 0 | Q144: 0
A145: B/I/1/2/3 | B145: Organizacja komunikacji, marketing, nadzór i kontrola ruchu | C145: 3 podzadanie | D145: NIE | E145: 600 | F145: 60004 | G145: 4389 | H145: Zakup usług obejmujących tłumaczenia | I145: SFUE/8/61 | P145: 0 | Q145: 0
A146: B/I/1/2/3 | B146: Organizacja komunikacji, marketing, nadzór i kontrola ruchu | C146: 3 podzadanie | D146: NIE | E146: 600 | F146: 60004 | G146: 4390 | H146: Zakup usług obejmujących wykonanie ekspertyz, analiz i opinii | I146: GMMW | P146: 0 | Q146: 0
A147: B/I/1/2/3 | B147: Organizacja komunikacji, marketing, nadzór i kontrola ruchu | C147: 3 podzadanie | D147: NIE | E147: 600 | F147: 60004 | G147: 4398 | H147: Zakup usług obejmujących wykonanie ekspertyz, analiz i opinii | I147: SFUE/8/50 | P147: 0 | Q147: 0
A148: B/I/1/2/3 | B148: Organizacja komunikacji, marketing, nadzór i kontrola ruchu | C148: 3 podzadanie | D148: NIE | E148: 600 | F148: 60004 | G148: 4398 | H148: Zakup usług obejmujących wykonanie ekspertyz, analiz i opinii | I148: SFUE/8/59 | P148: 0 | Q148: 0
A149: B/I/1/2/3 | B149: Organizacja komunikacji, marketing, nadzór i kontrola ruchu | C149: 3 podzadanie | D149: NIE | E149: 600 | F149: 60004 | G149: 4398 | H149: Zakup usług obejmujących wykonanie ekspertyz, analiz i opinii | I149: SFUE/8/60 | P149: 0 | Q149: 0
A150: B/I/1/2/3 | B150: Organizacja komunikacji, marketing, nadzór i kontrola ruchu | C150: 3 podzadanie | D150: NIE | E150: 600 | F150: 60004 | G150: 4398 | H150: Zakup usług obejmujących wykonanie ekspertyz, analiz i opinii | I150: SFUE/8/61 | P150: 0 | Q150: 0
A151: B/I/1/2/3 | B151: Organizacja komunikacji, marketing, nadzór i kontrola ruchu | C151: 3 podzadanie | D151: NIE | E151: 600 | F151: 60004 | G151: 4399 | H151: Zakup usług obejmujących wykonanie ekspertyz, analiz i opinii | I151: SFUE/8/61 | P151: 0 | Q151: 0
A152: B/I/1/2/3 | B152: Organizacja komunikacji, marketing, nadzór i kontrola ruchu | C152: 3 podzadanie | D152: NIE | E152: 600 | F152: 60004 | G152: 4530 | H152: Podatek od towarów i usług (VAT) | I152: GMMW | P152: 0 | Q152: 0
A153: B/I/1/2/3 | B153: Organizacja komunikacji, marketing, nadzór i kontrola ruchu | C153: 3 podzadanie | D153: NIE | E153: 600 | F153: 60004 | G153: 4530 | H153: Podatek od towarów i usług (VAT) | I153: SFUE/23/6 | P153: 0 | Q153: 0
A154: B/I/1/2/3 | B154: Organizacja komunikacji, marketing, nadzór i kontrola ruchu | C154: 3 podzadanie | D154: NIE | E154: 600 | F154: 60022 | J154: =SUM(J155:J160) -> 0 | K154: 0 | L154: 0 | M154: 0 | N154: 0 | O154: 0 | P154: 0 | Q154: 0
A155: B/I/1/2/3 | B155: Organizacja komunikacji, marketing, nadzór i kontrola ruchu | C155: 3 podzadanie | D155: NIE | E155: 600 | F155: 60022 | G155: 4210 | H155: Zakup materiałów i wyposażenia | I155: BO/24/00/0011 | P155: 0 | Q155: 0
A156: B/I/1/2/3 | B156: Organizacja komunikacji, marketing, nadzór i kontrola ruchu | C156: 3 podzadanie | D156: NIE | E156: 600 | F156: 60022 | G156: 4210 | H156: Zakup materiałów i wyposażenia | I156: GMMW | P156: 0 | Q156: 0
A157: B/I/1/2/3 | B157: Organizacja komunikacji, marketing, nadzór i kontrola ruchu | C157: 3 podzadanie | D157: NIE | E157: 600 | F157: 60022 | G157: 4270 | H157: Zakup usług remontowych | I157: GMMW | P157: 0 | Q157: 0
A158: B/I/1/2/3 | B158: Organizacja komunikacji, marketing, nadzór i kontrola ruchu | C158: 3 podzadanie | D158: NIE | E158: 600 | F158: 60022 | G158: 4300 | H158: Zakup usług pozostałych | I158: BO/22/00/0001 | P158: 0 | Q158: 0
A159: B/I/1/2/3 | B159: Organizacja komunikacji, marketing, nadzór i kontrola ruchu | C159: 3 podzadanie | D159: NIE | E159: 600 | F159: 60022 | G159: 4300 | H159: Zakup usług pozostałych | I159: GMMW | P159: 0 | Q159: 0
A160: B/I/1/2/3 | B160: Organizacja komunikacji, marketing, nadzór i kontrola ruchu | C160: 3 podzadanie | D160: NIE | E160: 600 | F160: 60022 | G160: 4430 | H160: Różne opłaty i składki | I160: GMMW | P160: 0 | Q160: 0
A161: B/I/1/2/3 | B161: Organizacja komunikacji, marketing, nadzór i kontrola ruchu | C161: 3 podzadanie | D161: NIE | E161: 600 | F161: 60095 | J161: =SUM(J162:J163) -> 0 | K161: 0 | L161: 0 | M161: 0 | N161: 0 | O161: 0 | P161: 0 | Q161: 0
A162: B/I/1/2/3 | B162: Organizacja komunikacji, marketing, nadzór i kontrola ruchu | C162: 3 podzadanie | D162: NIE | E162: 600 | F162: 60095 | G162: 4210 | H162: Zakup materiałów i wyposażenia | I162: GMMW | P162: 0 | Q162: 0
A163: B/I/1/2/3 | B163: Organizacja komunikacji, marketing, nadzór i kontrola ruchu | C163: 3 podzadanie | D163: NIE | E163: 600 | F163: 60095 | G163: 4300 | H163: Zakup usług pozostałych | I163: GMMW | P163: 0 | Q163: 0
A164: B/I/1/3 | B164: Utrzymanie infrastruktury przystankowej | C164: 3 zadanie | D164: T | J164: =SUM(J165) -> 0 | K164: 0 | L164: 0 | M164: 0 | N164: 0 | O164: 0 | P164: 0 | Q164: 0
A165: B/I/1/3 | B165: Utrzymanie infrastruktury przystankowej | C165: 3 zadanie | D165: NIE | E165: 600 | F165: 60020 | J165: =SUM(J166:J176) -> 0 | K165: 0 | L165: 0 | M165: 0 | N165: 0 | O165: 0 | P165: 0 | Q165: 0
A166: B/I/1/3 | B166: Utrzymanie infrastruktury przystankowej | C166: 3 zadanie | D166: NIE | E166: 600 | F166: 60020 | G166: 4210 | H166: Zakup materiałów i wyposażenia | I166: GMMW | P166: 0 | Q166: 0
A167: B/I/1/3 | B167: Utrzymanie infrastruktury przystankowej | C167: 3 zadanie | D167: NIE | E167: 600 | F167: 60020 | G167: 4270 | H167: Zakup usług remontowych | I167: GMMW/C | P167: 0 | Q167: 0
A168: B/I/1/3 | B168: Utrzymanie infrastruktury przystankowej | C168: 3 zadanie | D168: NIE | E168: 600 | F168: 60020 | G168: 4270 | H168: Zakup usług remontowych | I168: GMMW | P168: 0 | Q168: 0
A169: B/I/1/3 | B169: Utrzymanie infrastruktury przystankowej | C169: 3 zadanie | D169: NIE | E169: 600 | F169: 60020 | G169: 4270 | H169: Zakup usług remontowych | I169: GUPP | P169: 0 | Q169: 0
A170: B/I/1/3 | B170: Utrzymanie infrastruktury przystankowej | C170: 3 zadanie | D170: NIE | E170: 600 | F170: 60020 | G170: 4300 | H170: Zakup usług pozostałych | I170: BO/24/04/0085 | P170: 0 | Q170: 0
A171: B/I/1/3 | B171: Utrzymanie infrastruktury przystankowej | C171: 3 zadanie | D171: NIE | E171: 600 | F171: 60020 | G171: 4300 | H171: Zakup usług pozostałych | I171: GMMW/C | P171: 0 | Q171: 0
A172: B/I/1/3 | B172: Utrzymanie infrastruktury przystankowej | C172: 3 zadanie | D172: NIE | E172: 600 | F172: 60020 | G172: 4300 | H172: Zakup usług pozostałych | I172: GMMW | P172: 0 | Q172: 0
A173: B/I/1/3 | B173: Utrzymanie infrastruktury przystankowej | C173: 3 zadanie | D173: NIE | E173: 600 | F173: 60020 | G173: 4520 | H173: Opłaty na rzecz budżetów jednostek samorządu terytorialnego | I173: GMMW | P173: 0 | Q173: 0
A174: B/I/1/3 | B174: Utrzymanie infrastruktury przystankowej | C174: 3 zadanie | D174: NIE | E174: 600 | F174: 60020 | G174: 4530 | H174: Podatek od towarów i usług (VAT) | I174: BO/24/04/0085 | P174: 0 | Q174: 0
A175: B/I/1/3 | B175: Utrzymanie infrastruktury przystankowej | C175: 3 zadanie | D175: NIE | E175: 600 | F175: 60020 | G175: 4530 | H175: Podatek od towarów i usług (VAT) | I175: GMMW/C | P175: 0 | Q175: 0
A176: B/I/1/3 | B176: Utrzymanie infrastruktury przystankowej | C176: 3 zadanie | D176: NIE | E176: 600 | F176: 60020 | G176: 4530 | H176: Podatek od towarów i usług (VAT) | I176: GMMW | P176: 0 | Q176: 0
A177: B/I/1/4 | B177: Opracowania i analizy związane z komunikacją miejską | C177: 4 zadanie | D177: T | J177: =SUM(J184,J178) -> 0 | K177: 0 | L177: 0 | M177: 0 | N177: 0 | O177: 0 | P177: 0 | Q177: 0
A178: B/I/1/4 | B178: Opracowania i analizy związane z komunikacją miejską | C178: 4 zadanie | D178: NIE | E178: 600 | F178: 60004 | J178: =SUM(J179:J183) -> 0 | K178: 0 | L178: 0 | M178: 0 | N178: 0 | O178: 0 | P178: 0 | Q178: 0
A179: B/I/1/4 | B179: Opracowania i analizy związane z komunikacją miejską | C179: 4 zadanie | D179: NIE | E179: 600 | F179: 60004 | G179: 2310 | H179: Dotacja celowa przekazana gminie na zadania bieżące realizowane na podstawie porozumień (umów) między jednostkami samorządu terytorialnego | I179: GMMW | P179: 0 | Q179: 0
A180: B/I/1/4 | B180: Opracowania i analizy związane z komunikacją miejską | C180: 4 zadanie | D180: NIE | E180: 600 | F180: 60004 | G180: 4390 | H180: Zakup usług obejmujących wykonanie ekspertyz, analiz i opinii | I180: SFUE/8/57 | P180: 0 | Q180: 0
A181: B/I/1/4 | B181: Opracowania i analizy związane z komunikacją miejską | C181: 4 zadanie | D181: NIE | E181: 600 | F181: 60004 | G181: 4397 | H181: Zakup usług obejmujących wykonanie ekspertyz, analiz i opinii | I181: SFUE/8/57 | P181: 0 | Q181: 0
A182: B/I/1/4 | B182: Opracowania i analizy związane z komunikacją miejską | C182: 4 zadanie | D182: NIE | E182: 600 | F182: 60004 | G182: 4399 | H182: Zakup usług obejmujących wykonanie ekspertyz, analiz i opinii | I182: SFUE/8/57 | P182: 0 | Q182: 0
A183: B/I/1/4 | B183: Opracowania i analizy związane z komunikacją miejską | C183: 4 zadanie | D183: NIE | E183: 600 | F183: 60004 | G183: 4530 | H183: Podatek od towarów i usług (VAT) | I183: SFUE/8/57 | P183: 0 | Q183: 0
A184: B/I/1/4 | B184: Opracowania i analizy związane z komunikacją miejską | C184: 4 zadanie | D184: NIE | E184: 600 | F184: 60095 | J184: =SUM(J185:J186,J190:J192,J196) -> 0 | K184: 0 | L184: 0 | M184: 0 | N184: 0 | O184: 0 | P184: 0 | Q184: 0
A185: B/I/1/4 | B185: Opracowania i analizy związane z komunikacją miejską | C185: 4 zadanie | D185: NIE | E185: 600 | F185: 60095 | G185: 4300 | H185: Zakup usług pozostałych | I185: GMMW | P185: 0 | Q185: 0
A186: B/I/1/4 | B186: Opracowania i analizy związane z komunikacją miejską | C186: 4 zadanie | D186: NIE | E186: 600 | F186: 60095 | G186: 4309 | H186: Zakup usług pozostałych | J186: =SUM(J187:J189) -> 0 | K186: 0 | L186: 0 | M186: 0 | N186: 0 | O186: 0 | P186: 0 | Q186: 0
A187: B/I/1/4 | B187: Opracowania i analizy związane z komunikacją miejską | C187: 4 zadanie | D187: NIE | E187: 600 | F187: 60095 | G187: 4309 | H187: +000 | I187: SFUE/22/5 | P187: 0 | Q187: 0
A188: B/I/1/4 | B188: Opracowania i analizy związane z komunikacją miejską | C188: 4 zadanie | D188: NIE | E188: 600 | F188: 60095 | G188: 4309 | H188: +001 | I188: SFUE/22/5 | P188: 0 | Q188: 0
A189: B/I/1/4 | B189: Opracowania i analizy związane z komunikacją miejską | C189: 4 zadanie | D189: NIE | E189: 600 | F189: 60095 | G189: 4309 | H189: +002 | I189: SFUE/22/5 | P189: 0 | Q189: 0
A190: B/I/1/4 | B190: Opracowania i analizy związane z komunikacją miejską | C190: 4 zadanie | D190: NIE | E190: 600 | F190: 60095 | G190: 4390 | H190: Zakup usług obejmujących wykonanie ekspertyz, analiz i opinii | I190: GMMW | P190: 0 | Q190: 0
A191: B/I/1/4 | B191: Opracowania i analizy związane z komunikacją miejską | C191: 4 zadanie | D191: NIE | E191: 600 | F191: 60095 | G191: 4398 | H191: Zakup usług obejmujących wykonanie ekspertyz, analiz i opinii | I191: SFUE/22/5 | P191: 0 | Q191: 0
A192: B/I/1/4 | B192: Opracowania i analizy związane z komunikacją miejską | C192: 4 zadanie | D192: NIE | E192: 600 | F192: 60095 | G192: 4399 | H192: Zakup usług obejmujących wykonanie ekspertyz, analiz i opinii | J192: =SUM(J193:J195) -> 0 | K192: 0 | L192: 0 | M192: 0 | N192: 0 | O192: 0 | P192: 0 | Q192: 0
A193: B/I/1/4 | B193: Opracowania i analizy związane z komunikacją miejską | C193: 4 zadanie | D193: NIE | E193: 600 | F193: 60095 | G193: 4399 | H193: +000 | I193: SFUE/22/5 | P193: 0 | Q193: 0
A194: B/I/1/4 | B194: Opracowania i analizy związane z komunikacją miejską | C194: 4 zadanie | D194: NIE | E194: 600 | F194: 60095 | G194: 4399 | H194: +001 | I194: SFUE/22/5 | P194: 0 | Q194: 0
A195: B/I/1/4 | B195: Opracowania i analizy związane z komunikacją miejską | C195: 4 zadanie | D195: NIE | E195: 600 | F195: 60095 | G195: 4399 | H195: +002 | I195: SFUE/22/5 | P195: 0 | Q195: 0
A196: B/I/1/4 | B196: Opracowania i analizy związane z komunikacją miejską | C196: 4 zadanie | D196: NIE | E196: 600 | F196: 60095 | G196: 4530 | H196: Podatek od towarów i usług (VAT) | I196: GMMW | P196: 0 | Q196: 0
A197: I/2 | B197: Drogi i mosty | C197: 2 program | D197: T | J197: =SUM(J414,J329,J317,J296,J290,J283,J198) -> 13299556 | K197: 13299556 | L197: 20000 | M197: 29978 | N197: 20000 | O197: 29978 | P197: 13309534 | Q197: 13309534 | R197: Tak | S197: Tak
A198: B/I/2/1 | B198: Utrzymanie i remonty dróg | C198: 1 zadanie | D198: T | J198: =SUM(J272,J233,J199) -> 12746056 | K198: 12746056 | L198: 20000 | M198: 29978 | N198: 20000 | O198: 29978 | P198: 12756034 | Q198: 12756034 | R198: Tak | S198: Tak
A199: B/I/2/1/1 | B199: Utrzymanie i remonty dróg gminnych | C199: 1 podzadanie | D199: T | J199: =SUM(J231,J200) -> 11781056 | K199: 11781056 | L199: 20000 | M199: 29978 | N199: 20000 | O199: 29978 | P199: 11791034 | Q199: 11791034 | R199: Tak | S199: Tak
A200: B/I/2/1/1 | B200: Utrzymanie i remonty dróg gminnych | C200: 1 podzadanie | D200: NIE | E200: 600 | F200: 60016 | J200: =SUM(J201:J230) -> 11781056 | K200: 11781056 | L200: 20000 | M200: 29978 | N200: 20000 | O200: 29978 | P200: 11791034 | Q200: 11791034 | R200: Tak | S200: Tak
... 4300 more rows

Sheet KLASYCZNY
A1: PLAN WYDATKÓW w UKŁADZIE KLASYCZNYM | K1: Załącznik Nr 2b do Uchwały Nr VIII/75/2024 Rady Dzielnicy Białołęka m.st. Warszawy z 16 października 2024 r. | Q1: 9021
D3: =ZADANIOWY!F2 -> . | E3: =E9032 -> 876778633 | F3: =F9032 -> 408071922 | G3: =G9032 -> 24455862 | H3: 3962970 | I3: 24287583 | J3: 3170609 | K3: =K9032 -> 856285741 | L3: 386954948
A4: Dział | B4: Rozdział | C4: § | D4: Wyszczególnienie | E4: PLAN | F4: w tym Urząd m.st. Warszawy | G4: PLAN Zmiana[-] | H4: PLAN Zmiana[+] | I4: w tym Urząd Zmiana[-] | J4: w tym Urząd Zmiana[+] | K4: PLAN PO ZMIANIE | L4: w tym Urząd PO ZMIANIE | M4: Pozycja wypełniona | N4: Zmiany wypełnione | O4: =IF(COUNTIF(O5:O164,"błędny urząd")<>0,"ŹLE","") ->  | P4: =IF(COUNTIF(P5:P164,"ujemny plan")<>0,"ŹLE","") -> 
A5: 010 | D5: Rolnictwo i łowiectwo | E5: =SUM(E6,E15) -> 4240 | F5: 4240 | G5: 0 | H5: 0 | I5: 0 | J5: 0 | K5: 4240 | L5: 4240 | M5: =IF(SUM(E5:L5)>0,"Tak","") -> Tak | N5: =IF(SUM(G5:J5)>0,"Tak","") ->  | O5: =IF(OR(E5<F5,K5<L5,G5<I5,H5<J5),"błędny urząd","") ->  | P5: =IF(OR(E5<0,F5<0,K5<0,L5<0),"ujemny plan","") -> 
D6: WYDATKI BIEŻĄCE | E6: =SUM(E7,E10:E14) -> 4240 | F6: 4240 | G6: 0 | H6: 0 | I6: 0 | J6: 0 | K6: 4240 | L6: 4240 | M6: Tak
D7: Wydatki jednostek budżetowych w tym na: | E7: =SUM(E8:E9) -> 4240 | F7: 4240 | G7: 0 | H7: 0 | I7: 0 | J7: 0 | K7: 4240 | L7: 4240 | M7: Tak
D8: wynagrodzenia i składki od nich naliczane | E8: =SUM(E19,E33,E45,E57) -> 0 | F8: 0 | G8: 0 | H8: 0 | I8: 0 | J8: 0 | K8: 0 | L8: 0
D9: wydatki związane z realizacją ich zadań statutowych | E9: 4240 | F9: 4240 | G9: 0 | H9: 0 | I9: 0 | J9: 0 | K9: 4240 | L9: 4240 | M9: Tak
D10: Dotacje na zadania bieżące | E10: 0 | F10: 0 | G10: 0 | H10: 0 | I10: 0 | J10: 0 | K10: 0 | L10: 0
D11: Świadczenia na rzecz osób fizycznych | E11: 0 | F11: 0 | G11: 0 | H11: 0 | I11: 0 | J11: 0 | K11: 0 | L11: 0
D12: Wydatki na programy finansowane z UE | E12: 0 | F12: 0 | G12: 0 | H12: 0 | I12: 0 | J12: 0 | K12: 0 | L12: 0
D13: Obsługa długu | E13: 0 | F13: 0 | G13: 0 | H13: 0 | I13: 0 | J13: 0 | K13: 0 | L13: 0
D14: Poręczenia i gwarancje | E14: 0 | F14: 0 | G14: 0 | H14: 0 | I14: 0 | J14: 0 | K14: 0 | L14: 0
D15: WYDATKI MAJĄTKOWE | E15: 0 | F15: 0 | G15: 0 | H15: 0 | I15: 0 | J15: 0 | K15: 0 | L15: 0
B16: 01005 | D16: Prace geodezyjno - urządzeniowe na potrzeby rolnictwa | E16: =SUM(E17,E26) -> 0 | F16: 0 | G16: 0 | H16: 0 | I16: 0 | J16: 0 | K16: 0 | L16: 0
D17: WYDATKI BIEŻĄCE | E17: =SUM(E18,E21:E25) -> 0 | F17: 0 | G17: 0 | H17: 0 | I17: 0 | J17: 0 | K17: 0 | L17: 0
D18: Wydatki jednostek budżetowych w tym na: | E18: =SUM(E19:E20) -> 0 | F18: 0 | G18: 0 | H18: 0 | I18: 0 | J18: 0 | K18: 0 | L18: 0
D19: wynagrodzenia i składki od nich naliczane
D20: wydatki związane z realizacją ich zadań statutowych | E20: =0+E27 -> 0 | F20: 0 | G20: 0 | H20: 0 | I20: 0 | J20: 0 | K20: 0 | L20: 0
D21: Dotacje na zadania bieżące
D22: Świadczenia na rzecz osób fizycznych
D23: Wydatki na programy finansowane z UE
D24: Obsługa długu
D25: Poręczenia i gwarancje
D26: WYDATKI MAJĄTKOWE
C27: 4300 | D27: Zakup usług pozostałych | E27: =SUM(E28:E29) -> 0 | F27: 0 | G27: 0 | H27: 0 | I27: 0 | J27: 0 | K27: 0 | L27: 0
D28: Środki z budżetu państwa | E28: =0 -> 0 | F28: =0 -> 0 | G28: =0 -> 0 | H28: =0 -> 0 | I28: =0 -> 0 | J28: =0 -> 0 | K28: =E28-G28+H28 -> 0 | L28: =F28-I28+J28 -> 0 | M28: =IF(SUM(E28:L28)>0,"Tak","") ->  | N28: =IF(SUM(G28:J28)>0,"Tak","") ->  | O28: =IF(OR(E28<F28,K28<L28,G28<I28,H28<J28),"błędny urząd","") ->  | P28: =IF(OR(E28<0,F28<0,K28<0,L28<0),"ujemny plan","") -> 
D29: Środki z budżetu miasta | E29: =0 -> 0 | F29: =0 -> 0 | G29: =0 -> 0 | H29: =0 -> 0 | I29: =0 -> 0 | J29: =0 -> 0 | K29: =E29-G29+H29 -> 0 | L29: =F29-I29+J29 -> 0 | M29: =IF(SUM(E29:L29)>0,"Tak","") ->  | N29: =IF(SUM(G29:J29)>0,"Tak","") ->  | O29: =IF(OR(E29<F29,K29<L29,G29<I29,H29<J29),"błędny urząd","") ->  | P29: =IF(OR(E29<0,F29<0,K29<0,L29<0),"ujemny plan","") -> 
B30: 01030 | D30: Izby rolnicze | E30: =SUM(E31,E40) -> 0 | F30: 0 | G30: 0 | H30: 0 | I30: 0 | J30: 0 | K30: 0 | L30: 0
D31: WYDATKI BIEŻĄCE | E31: =SUM(E32,E35:E39) -> 0 | F31: 0 | G31: 0 | H31: 0 | I31: 0 | J31: 0 | K31: 0 | L31: 0
D32: Wydatki jednostek budżetowych w tym na: | E32: =SUM(E33:E34) -> 0 | F32: 0 | G32: 0 | H32: 0 | I32: 0 | J32: 0 | K32: 0 | L32: 0
D33: wynagrodzenia i składki od nich naliczane
D34: wydatki związane z realizacją ich zadań statutowych | E34: =0+E41 -> 0 | F34: 0 | G34: 0 | H34: 0 | I34: 0 | J34: 0 | K34: 0 | L34: 0
D35: Dotacje na zadania bieżące
D36: Świadczenia na rzecz osób fizycznych
D37: Wydatki na programy finansowane z UE
D38: Obsługa długu
D39: Poręczenia i gwarancje
D40: WYDATKI MAJĄTKOWE
C41: 2850 | D41: Wpłaty gmin na rzecz izb rolniczych w wysokości 2% uzyskanych wpływów z podatku rolnego | E41: =0+ZADANIOWY!J1961 -> 0 | F41: =0+ZADANIOWY!K1961 -> 0 | G41: =0+ZADANIOWY!L1961 -> 0 | H41: =0+ZADANIOWY!M1961 -> 0 | I41: =0+ZADANIOWY!N1961 -> 0 | J41: =0+ZADANIOWY!O1961 -> 0 | K41: 0 | L41: 0
B42: 01078 | D42: Izby rolnicze | E42: =SUM(E43,E52) -> 0 | F42: 0 | G42: 0 | H42: 0 | I42: 0 | J42: 0 | K42: 0 | L42: 0
D43: WYDATKI BIEŻĄCE | E43: =SUM(E44,E47:E51) -> 0 | F43: 0 | G43: 0 | H43: 0 | I43: 0 | J43: 0 | K43: 0 | L43: 0
D44: Wydatki jednostek budżetowych w tym na: | E44: =SUM(E45:E46) -> 0 | F44: 0 | G44: 0 | H44: 0 | I44: 0 | J44: 0 | K44: 0 | L44: 0
D45: wynagrodzenia i składki od nich naliczane
D46: wydatki związane z realizacją ich zadań statutowych
D47: Dotacje na zadania bieżące | E47: =0+E53 -> 0 | F47: 0 | G47: 0 | H47: 0 | I47: 0 | J47: 0 | K47: 0 | L47: 0
D48: Świadczenia na rzecz osób fizycznych
D49: Wydatki na programy finansowane z UE
D50: Obsługa długu
D51: Poręczenia i gwarancje
D52: WYDATKI MAJĄTKOWE
C53: 2710 | D53: Dotacja celowa na pomoc finansową udzielaną między jednostkami samorządu terytorialnego na dofinansowanie własnych zadań bieżących | E53: =0 -> 0 | F53: =0 -> 0 | G53: =0 -> 0 | H53: =0 -> 0 | I53: =0 -> 0 | J53: =0 -> 0 | K53: 0 | L53: 0
B54: 01095 | D54: Pozostała działalność | E54: =SUM(E55,E64) -> 4240 | F54: 4240 | G54: 0 | H54: 0 | I54: 0 | J54: 0 | K54: 4240 | L54: 4240 | M54: Tak
D55: WYDATKI BIEŻĄCE | E55: =SUM(E56,E59:E63) -> 4240 | F55: 4240 | G55: 0 | H55: 0 | I55: 0 | J55: 0 | K55: 4240 | L55: 4240 | M55: Tak
D56: Wydatki jednostek budżetowych w tym na: | E56: =SUM(E57:E58) -> 4240 | F56: 4240 | G56: 0 | H56: 0 | I56: 0 | J56: 0 | K56: 4240 | L56: 4240 | M56: Tak
D57: wynagrodzenia i składki od nich naliczane | E57: =0+E65+E68+E71+E80 -> 0 | F57: 0 | G57: 0 | H57: 0 | I57: 0 | J57: 0 | K57: 0 | L57: 0
D58: wydatki związane z realizacją ich zadań statutowych | E58: =0+E74+E77 -> 4240 | F58: 4240 | G58: 0 | H58: 0 | I58: 0 | J58: 0 | K58: 4240 | L58: 4240 | M58: Tak
D59: Dotacje na zadania bieżące
D60: Świadczenia na rzecz osób fizycznych
D61: Wydatki na programy finansowane z UE
D62: Obsługa długu
D63: Poręczenia i gwarancje
D64: WYDATKI MAJĄTKOWE
C65: 4010 | D65: Wynagrodzenia osobowe pracowników | E65: =SUM(E66:E67) -> 0 | F65: 0 | G65: 0 | H65: 0 | I65: 0 | J65: 0 | K65: 0 | L65: 0
D66: Środki z budżetu państwa | E66: =0 -> 0 | F66: =0 -> 0 | G66: =0 -> 0 | H66: =0 -> 0 | I66: =0 -> 0 | J66: =0 -> 0 | K66: 0 | L66: 0
D67: Środki z budżetu miasta | E67: =0 -> 0 | F67: =0 -> 0 | G67: =0 -> 0 | H67: =0 -> 0 | I67: =0 -> 0 | J67: =0 -> 0 | K67: 0 | L67: 0
C68: 4110 | D68: Składki na ubezpieczenia społeczne | E68: =SUM(E69:E70) -> 0 | F68: 0 | G68: 0 | H68: 0 | I68: 0 | J68: 0 | K68: 0 | L68: 0
D69: Środki z budżetu państwa | E69: =0 -> 0 | F69: =0 -> 0 | G69: =0 -> 0 | H69: =0 -> 0 | I69: =0 -> 0 | J69: =0 -> 0 | K69: 0 | L69: 0
D70: Środki z budżetu miasta | E70: =0 -> 0 | F70: =0 -> 0 | G70: =0 -> 0 | H70: =0 -> 0 | I70: =0 -> 0 | J70: =0 -> 0 | K70: 0 | L70: 0
C71: 4120 | D71: Składki na Fundusz Pracy oraz Fundusz Solidarnościowy | E71: =SUM(E72:E73) -> 0 | F71: 0 | G71: 0 | H71: 0 | I71: 0 | J71: 0 | K71: 0 | L71: 0
D72: Środki z budżetu państwa | E72: =0 -> 0 | F72: =0 -> 0 | G72: =0 -> 0 | H72: =0 -> 0 | I72: =0 -> 0 | J72: =0 -> 0 | K72: 0 | L72: 0
D73: Środki z budżetu miasta | E73: =0 -> 0 | F73: =0 -> 0 | G73: =0 -> 0 | H73: =0 -> 0 | I73: =0 -> 0 | J73: =0 -> 0 | K73: 0 | L73: 0
C74: 4300 | D74: Zakup usług pozostałych | E74: =SUM(E75:E76) -> 83 | F74: 83 | G74: 0 | H74: 0 | I74: 0 | J74: 0 | K74: 83 | L74: 83 | M74: Tak
D75: Środki z budżetu państwa | E75: =0+ZADANIOWY!J1954 -> 83 | F75: =0+ZADANIOWY!K1954 -> 83 | G75: =0+ZADANIOWY!L1954 -> 0 | H75: =0+ZADANIOWY!M1954 -> 0 | I75: =0+ZADANIOWY!N1954 -> 0 | J75: =0+ZADANIOWY!O1954 -> 0 | K75: 83 | L75: 83 | M75: Tak
D76: Środki z budżetu miasta | E76: =0+ZADANIOWY!J1955 -> 0 | F76: =0+ZADANIOWY!K1955 -> 0 | G76: =0+ZADANIOWY!L1955 -> 0 | H76: =0+ZADANIOWY!M1955 -> 0 | I76: =0+ZADANIOWY!N1955 -> 0 | J76: =0+ZADANIOWY!O1955 -> 0 | K76: 0 | L76: 0
C77: 4430 | D77: Różne opłaty i składki | E77: =SUM(E78:E79) -> 4157 | F77: 4157 | G77: 0 | H77: 0 | I77: 0 | J77: 0 | K77: 4157 | L77: 4157 | M77: Tak
D78: Środki z budżetu państwa | E78: =0+ZADANIOWY!J1957 -> 4157 | F78: =0+ZADANIOWY!K1957 -> 4157 | G78: =0+ZADANIOWY!L1957 -> 0 | H78: =0+ZADANIOWY!M1957 -> 0 | I78: =0+ZADANIOWY!N1957 -> 0 | J78: =0+ZADANIOWY!O1957 -> 0 | K78: 4157 | L78: 4157 | M78: Tak
D79: Środki z budżetu miasta | E79: =0+ZADANIOWY!J1958 -> 0 | F79: =0+ZADANIOWY!K1958 -> 0 | G79: =0+ZADANIOWY!L1958 -> 0 | H79: =0+ZADANIOWY!M1958 -> 0 | I79: =0+ZADANIOWY!N1958 -> 0 | J79: =0+ZADANIOWY!O1958 -> 0 | K79: 0 | L79: 0
C80: 4710 | D80: Wpłaty na PPK finansowane przez podmiot zatrudniający | E80: =SUM(E81:E82) -> 0 | F80: 0 | G80: 0 | H80: 0 | I80: 0 | J80: 0 | K80: 0 | L80: 0
D81: Środki z budżetu państwa | E81: =0 -> 0 | F81: =0 -> 0 | G81: =0 -> 0 | H81: =0 -> 0 | I81: =0 -> 0 | J81: =0 -> 0 | K81: 0 | L81: 0
D82: Środki z budżetu miasta | E82: =0 -> 0 | F82: =0 -> 0 | G82: =0 -> 0 | H82: =0 -> 0 | I82: =0 -> 0 | J82: =0 -> 0 | K82: 0 | L82: 0
A83: 020 | D83: Leśnictwo | E83: =SUM(E84,E93) -> 0 | F83: 0 | G83: 0 | H83: 0 | I83: 0 | J83: 0 | K83: 0 | L83: 0
D84: WYDATKI BIEŻĄCE | E84: =SUM(E85,E88:E92) -> 0 | F84: 0 | G84: 0 | H84: 0 | I84: 0 | J84: 0 | K84: 0 | L84: 0
D85: Wydatki jednostek budżetowych w tym na: | E85: =SUM(E86:E87) -> 0 | F85: 0 | G85: 0 | H85: 0 | I85: 0 | J85: 0 | K85: 0 | L85: 0
D86: wynagrodzenia i składki od nich naliczane | E86: =SUM(E97,E147) -> 0 | F86: 0 | G86: 0 | H86: 0 | I86: 0 | J86: 0 | K86: 0 | L86: 0
D87: wydatki związane z realizacją ich zadań statutowych | E87: 0 | F87: 0 | G87: 0 | H87: 0 | I87: 0 | J87: 0 | K87: 0 | L87: 0
D88: Dotacje na zadania bieżące | E88: 0 | F88: 0 | G88: 0 | H88: 0 | I88: 0 | J88: 0 | K88: 0 | L88: 0
D89: Świadczenia na rzecz osób fizycznych | E89: 0 | F89: 0 | G89: 0 | H89: 0 | I89: 0 | J89: 0 | K89: 0 | L89: 0
D90: Wydatki na programy finansowane z UE | E90: 0 | F90: 0 | G90: 0 | H90: 0 | I90: 0 | J90: 0 | K90: 0 | L90: 0
D91: Obsługa długu | E91: 0 | F91: 0 | G91: 0 | H91: 0 | I91: 0 | J91: 0 | K91: 0 | L91: 0
D92: Poręczenia i gwarancje | E92: 0 | F92: 0 | G92: 0 | H92: 0 | I92: 0 | J92: 0 | K92: 0 | L92: 0
D93: WYDATKI MAJĄTKOWE | E93: 0 | F93: 0 | G93: 0 | H93: 0 | I93: 0 | J93: 0 | K93: 0 | L93: 0 | M93: =IF(SUM(E93:L93)>0,"Tak","") ->  | N93: =IF(SUM(G93:J93)>0,"Tak","") ->  | O93: =IF(OR(E93<F93,K93<L93,G93<I93,H93<J93),"błędny urząd","") ->  | P93: =IF(OR(E93<0,F93<0,K93<0,L93<0),"ujemny plan","") -> 
B94: 02001 | D94: Gospodarka leśna | E94: =SUM(E95,E104) -> 0 | F94: 0 | G94: 0 | H94: 0 | I94: 0 | J94: 0 | K94: 0 | L94: 0
D95: WYDATKI BIEŻĄCE | E95: =SUM(E96,E99:E103) -> 0 | F95: 0 | G95: 0 | H95: 0 | I95: 0 | J95: 0 | K95: 0 | L95: 0
D96: Wydatki jednostek budżetowych w tym na: | E96: =SUM(E97:E98) -> 0 | F96: 0 | G96: 0 | H96: 0 | I96: 0 | J96: 0 | K96: 0 | L96: 0
D97: wynagrodzenia i składki od nich naliczane | E97: =0+E106+E107+E108+E109+E111+E143 -> 0 | F97: 0 | G97: 0 | H97: 0 | I97: 0 | J97: 0 | K97: 0 | L97: 0
D98: wydatki związane z realizacją ich zadań statutowych | E98: =0+E110+E112+E113+E116+E117+E118+E119+E120+E121+E124+E125+E126+E127+E128+E129+E130+E131+E132+E133+E134+E135+E136+E137+E138+E139+E140+E141+E142 -> 0 | F98: 0 | G98: 0 | H98: 0 | I98: 0 | J98: 0 | K98: 0 | L98: 0
D99: Dotacje na zadania bieżące
D100: Świadczenia na rzecz osób fizycznych | E100: =0+E105 -> 0 | F100: 0 | G100: 0 | H100: 0 | I100: 0 | J100: 0 | K100: 0 | L100: 0
D101: Wydatki na programy finansowane z UE | E101: =0+E114+E115+E122+E123 -> 0 | F101: 0 | G101: 0 | H101: 0 | I101: 0 | J101: 0 | K101: 0 | L101: 0
D102: Obsługa długu
D103: Poręczenia i gwarancje
D104: WYDATKI MAJĄTKOWE
C105: 3020 | D105: Wydatki osobowe niezaliczone do wynagrodzeń | E105: =0+ZADANIOWY!J1863 -> 0 | F105: =0+ZADANIOWY!K1863 -> 0 | G105: =0+ZADANIOWY!L1863 -> 0 | H105: =0+ZADANIOWY!M1863 -> 0 | I105: =0+ZADANIOWY!N1863 -> 0 | J105: =0+ZADANIOWY!O1863 -> 0 | K105: =E105-G105+H105 -> 0 | L105: =F105-I105+J105 -> 0
C106: 4010 | D106: Wynagrodzenia osobowe pracowników | E106: =0+ZADANIOWY!J1864 -> 0 | F106: =0+ZADANIOWY!K1864 -> 0 | G106: =0+ZADANIOWY!L1864 -> 0 | H106: =0+ZADANIOWY!M1864 -> 0 | I106: =0+ZADANIOWY!N1864 -> 0 | J106: =0+ZADANIOWY!O1864 -> 0 | K106: 0 | L106: 0
C107: 4040 | D107: Dodatkowe wynagrodzenie roczne | E107: =0+ZADANIOWY!J1865 -> 0 | F107: =0+ZADANIOWY!K1865 -> 0 | G107: =0+ZADANIOWY!L1865 -> 0 | H107: =0+ZADANIOWY!M1865 -> 0 | I107: =0+ZADANIOWY!N1865 -> 0 | J107: =0+ZADANIOWY!O1865 -> 0 | K107: 0 | L107: 0
C108: 4110 | D108: Składki na ubezpieczenia społeczne | E108: =0+ZADANIOWY!J1866 -> 0 | F108: =0+ZADANIOWY!K1866 -> 0 | G108: =0+ZADANIOWY!L1866 -> 0 | H108: =0+ZADANIOWY!M1866 -> 0 | I108: =0+ZADANIOWY!N1866 -> 0 | J108: =0+ZADANIOWY!O1866 -> 0 | K108: 0 | L108: 0
C109: 4120 | D109: Składki na Fundusz Pracy oraz Fundusz Solidarnościowy | E109: =0+ZADANIOWY!J1867 -> 0 | F109: =0+ZADANIOWY!K1867 -> 0 | G109: =0+ZADANIOWY!L1867 -> 0 | H109: =0+ZADANIOWY!M1867 -> 0 | I109: =0+ZADANIOWY!N1867 -> 0 | J109: =0+ZADANIOWY!O1867 -> 0 | K109: 0 | L109: 0
C110: 4140 | D110: Wpłaty na Państwowy Fundusz Rehabilitacji Osób Niepełnosprawnych | E110: =0+ZADANIOWY!J1868 -> 0 | F110: =0+ZADANIOWY!K1868 -> 0 | G110: =0+ZADANIOWY!L1868 -> 0 | H110: =0+ZADANIOWY!M1868 -> 0 | I110: =0+ZADANIOWY!N1868 -> 0 | J110: =0+ZADANIOWY!O1868 -> 0 | K110: 0 | L110: 0
C111: 4170 | D111: Wynagrodzenia bezosobowe | E111: =0+ZADANIOWY!J1869+ZADANIOWY!J1870+ZADANIOWY!J1871+ZADANIOWY!J1872+ZADANIOWY!J1873 -> 0 | F111: =0+ZADANIOWY!K1869+ZADANIOWY!K1870+ZADANIOWY!K1871+ZADANIOWY!K1872+ZADANIOWY!K1873 -> 0 | G111: =0+ZADANIOWY!L1869+ZADANIOWY!L1870+ZADANIOWY!L1871+ZADANIOWY!L1872+ZADANIOWY!L1873 -> 0 | H111: =0+ZADANIOWY!M1869+ZADANIOWY!M1870+ZADANIOWY!M1871+ZADANIOWY!M1872+ZADANIOWY!M1873 -> 0 | I111: =0+ZADANIOWY!N1869+ZADANIOWY!N1870+ZADANIOWY!N1871+ZADANIOWY!N1872+ZADANIOWY!N1873 -> 0 | J111: =0+ZADANIOWY!O1869+ZADANIOWY!O1870+ZADANIOWY!O1871+ZADANIOWY!O1872+ZADANIOWY!O1873 -> 0 | K111: 0 | L111: 0
C112: 4190 | D112: Nagrody konkursowe | E112: =0 -> 0 | F112: =0 -> 0 | G112: =0 -> 0 | H112: =0 -> 0 | I112: =0 -> 0 | J112: =0 -> 0 | K112: 0 | L112: 0
C113: 4210 | D113: Zakup materiałów i wyposażenia | E113: =0+ZADANIOWY!J1874+ZADANIOWY!J1875+ZADANIOWY!J1876+ZADANIOWY!J1877+ZADANIOWY!J1878+ZADANIOWY!J1879+ZADANIOWY!J1880 -> 0 | F113: =0+ZADANIOWY!K1874+ZADANIOWY!K1875+ZADANIOWY!K1876+ZADANIOWY!K1877+ZADANIOWY!K1878+ZADANIOWY!K1879+ZADANIOWY!K1880 -> 0 | G113: =0+ZADANIOWY!L1874+ZADANIOWY!L1875+ZADANIOWY!L1876+ZADANIOWY!L1877+ZADANIOWY!L1878+ZADANIOWY!L1879+ZADANIOWY!L1880 -> 0 | H113: =0+ZADANIOWY!M1874+ZADANIOWY!M1875+ZADANIOWY!M1876+ZADANIOWY!M1877+ZADANIOWY!M1878+ZADANIOWY!M1879+ZADANIOWY!M1880 -> 0 | I113: =0+ZADANIOWY!N1874+ZADANIOWY!N1875+ZADANIOWY!N1876+ZADANIOWY!N1877+ZADANIOWY!N1878+ZADANIOWY!N1879+ZADANIOWY!N1880 -> 0 | J113: =0+ZADANIOWY!O1874+ZADANIOWY!O1875+ZADANIOWY!O1876+ZADANIOWY!O1877+ZADANIOWY!O1878+ZADANIOWY!O1879+ZADANIOWY!O1880 -> 0 | K113: 0 | L113: 0
C114: 4217 | D114: Zakup materiałów i wyposażenia | E114: =0 -> 0 | F114: =0 -> 0 | G114: =0 -> 0 | H114: =0 -> 0 | I114: =0 -> 0 | J114: =0 -> 0 | K114: 0 | L114: 0
C115: 4219 | D115: Zakup materiałów i wyposażenia | E115: =0 -> 0 | F115: =0 -> 0 | G115: =0 -> 0 | H115: =0 -> 0 | I115: =0 -> 0 | J115: =0 -> 0 | K115: 0 | L115: 0
C116: 4220 | D116: Zakup środków żywności | E116: =0+ZADANIOWY!J1881+ZADANIOWY!J1882 -> 0 | F116: =0+ZADANIOWY!K1881+ZADANIOWY!K1882 -> 0 | G116: =0+ZADANIOWY!L1881+ZADANIOWY!L1882 -> 0 | H116: =0+ZADANIOWY!M1881+ZADANIOWY!M1882 -> 0 | I116: =0+ZADANIOWY!N1881+ZADANIOWY!N1882 -> 0 | J116: =0+ZADANIOWY!O1881+ZADANIOWY!O1882 -> 0 | K116: 0 | L116: 0
C117: 4240 | D117: Zakup środków dydaktycznych i książek | E117: =0 -> 0 | F117: =0 -> 0 | G117: =0 -> 0 | H117: =0 -> 0 | I117: =0 -> 0 | J117: =0 -> 0 | K117: 0 | L117: 0
C118: 4260 | D118: Zakup energii | E118: =0+ZADANIOWY!J1883 -> 0 | F118: =0+ZADANIOWY!K1883 -> 0 | G118: =0+ZADANIOWY!L1883 -> 0 | H118: =0+ZADANIOWY!M1883 -> 0 | I118: =0+ZADANIOWY!N1883 -> 0 | J118: =0+ZADANIOWY!O1883 -> 0 | K118: 0 | L118: 0
C119: 4270 | D119: Zakup usług remontowych | E119: =0+ZADANIOWY!J1884 -> 0 | F119: =0+ZADANIOWY!K1884 -> 0 | G119: =0+ZADANIOWY!L1884 -> 0 | H119: =0+ZADANIOWY!M1884 -> 0 | I119: =0+ZADANIOWY!N1884 -> 0 | J119: =0+ZADANIOWY!O1884 -> 0 | K119: 0 | L119: 0
C120: 4280 | D120: Zakup usług zdrowotnych | E120: =0+ZADANIOWY!J1885 -> 0 | F120: =0+ZADANIOWY!K1885 -> 0 | G120: =0+ZADANIOWY!L1885 -> 0 | H120: =0+ZADANIOWY!M1885 -> 0 | I120: =0+ZADANIOWY!N1885 -> 0 | J120: =0+ZADANIOWY!O1885 -> 0 | K120: 0 | L120: 0
C121: 4300 | D121: Zakup usług pozostałych | E121: =0+ZADANIOWY!J1886+ZADANIOWY!J1887+ZADANIOWY!J1888+ZADANIOWY!J1889+ZADANIOWY!J1890+ZADANIOWY!J1891+ZADANIOWY!J1892 -> 0 | F121: =0+ZADANIOWY!K1886+ZADANIOWY!K1887+ZADANIOWY!K1888+ZADANIOWY!K1889+ZADANIOWY!K1890+ZADANIOWY!K1891+ZADANIOWY!K1892 -> 0 | G121: =0+ZADANIOWY!L1886+ZADANIOWY!L1887+ZADANIOWY!L1888+ZADANIOWY!L1889+ZADANIOWY!L1890+ZADANIOWY!L1891+ZADANIOWY!L1892 -> 0 | H121: =0+ZADANIOWY!M1886+ZADANIOWY!M1887+ZADANIOWY!M1888+ZADANIOWY!M1889+ZADANIOWY!M1890+ZADANIOWY!M1891+ZADANIOWY!M1892 -> 0 | I121: =0+ZADANIOWY!N1886+ZADANIOWY!N1887+ZADANIOWY!N1888+ZADANIOWY!N1889+ZADANIOWY!N1890+ZADANIOWY!N1891+ZADANIOWY!N1892 -> 0 | J121: =0+ZADANIOWY!O1886+ZADANIOWY!O1887+ZADANIOWY!O1888+ZADANIOWY!O1889+ZADANIOWY!O1890+ZADANIOWY!O1891+ZADANIOWY!O1892 -> 0 | K121: 0 | L121: 0
C122: 4307 | D122: Zakup usług pozostałych | E122: =0 -> 0 | F122: =0 -> 0 | G122: =0 -> 0 | H122: =0 -> 0 | I122: =0 -> 0 | J122: =0 -> 0 | K122: 0 | L122: 0
C123: 4309 | D123: Zakup usług pozostałych | E123: =0 -> 0 | F123: =0 -> 0 | G123: =0 -> 0 | H123: =0 -> 0 | I123: =0 -> 0 | J123: =0 -> 0 | K123: 0 | L123: 0
C124: 4360 | D124: Opłaty z tytułu zakupu usług telekomunikacyjnych | E124: =0+ZADANIOWY!J1893 -> 0 | F124: =0+ZADANIOWY!K1893 -> 0 | G124: =0+ZADANIOWY!L1893 -> 0 | H124: =0+ZADANIOWY!M1893 -> 0 | I124: =0+ZADANIOWY!N1893 -> 0 | J124: =0+ZADANIOWY!O1893 -> 0 | K124: 0 | L124: 0
C125: 4380 | D125: Zakup usług obejmujących tłumaczenia | E125: =0 -> 0 | F125: =0 -> 0 | G125: =0 -> 0 | H125: =0 -> 0 | I125: =0 -> 0 | J125: =0 -> 0 | K125: 0 | L125: 0
C126: 4390 | D126: Zakup usług obejmujących wykonanie ekspertyz, analiz i opinii | E126: =0+ZADANIOWY!J1894+ZADANIOWY!J1895 -> 0 | F126: =0+ZADANIOWY!K1894+ZADANIOWY!K1895 -> 0 | G126: =0+ZADANIOWY!L1894+ZADANIOWY!L1895 -> 0 | H126: =0+ZADANIOWY!M1894+ZADANIOWY!M1895 -> 0 | I126: =0+ZADANIOWY!N1894+ZADANIOWY!N1895 -> 0 | J126: =0+ZADANIOWY!O1894+ZADANIOWY!O1895 -> 0 | K126: 0 | L126: 0
C127: 4400 | D127: Opłaty za administrowanie i czynsze za budynki, lokale i pomieszczenia garażowe | E127: =0+ZADANIOWY!J1896 -> 0 | F127: =0+ZADANIOWY!K1896 -> 0 | G127: =0+ZADANIOWY!L1896 -> 0 | H127: =0+ZADANIOWY!M1896 -> 0 | I127: =0+ZADANIOWY!N1896 -> 0 | J127: =0+ZADANIOWY!O1896 -> 0 | K127: 0 | L127: 0
C128: 4410 | D128: Podróże służbowe krajowe | E128: =0+ZADANIOWY!J1897 -> 0 | F128: =0+ZADANIOWY!K1897 -> 0 | G128: =0+ZADANIOWY!L1897 -> 0 | H128: =0+ZADANIOWY!M1897 -> 0 | I128: =0+ZADANIOWY!N1897 -> 0 | J128: =0+ZADANIOWY!O1897 -> 0 | K128: 0 | L128: 0
C129: 4420 | D129: Podróże służbowe zagraniczne | E129: =0 -> 0 | F129: =0 -> 0 | G129: =0 -> 0 | H129: =0 -> 0 | I129: =0 -> 0 | J129: =0 -> 0 | K129: 0 | L129: 0
C130: 4430 | D130: Różne opłaty i składki | E130: =0+ZADANIOWY!J1898 -> 0 | F130: =0+ZADANIOWY!K1898 -> 0 | G130: =0+ZADANIOWY!L1898 -> 0 | H130: =0+ZADANIOWY!M1898 -> 0 | I130: =0+ZADANIOWY!N1898 -> 0 | J130: =0+ZADANIOWY!O1898 -> 0 | K130: 0 | L130: 0
C131: 4440 | D131: Odpisy na zakładowy fundusz świadczeń socjalnych | E131: =0+ZADANIOWY!J1899 -> 0 | F131: =0+ZADANIOWY!K1899 -> 0 | G131: =0+ZADANIOWY!L1899 -> 0 | H131: =0+ZADANIOWY!M1899 -> 0 | I131: =0+ZADANIOWY!N1899 -> 0 | J131: =0+ZADANIOWY!O1899 -> 0 | K131: 0 | L131: 0
C132: 4480 | D132: Podatek od nieruchomości | E132: =0+ZADANIOWY!J1900 -> 0 | F132: =0+ZADANIOWY!K1900 -> 0 | G132: =0+ZADANIOWY!L1900 -> 0 | H132: =0+ZADANIOWY!M1900 -> 0 | I132: =0+ZADANIOWY!N1900 -> 0 | J132: =0+ZADANIOWY!O1900 -> 0 | K132: 0 | L132: 0
C133: 4500 | D133: Pozostałe podatki na rzecz budżetów jednostek samorządu terytorialnego | E133: =0+ZADANIOWY!J1901 -> 0 | F133: =0+ZADANIOWY!K1901 -> 0 | G133: =0+ZADANIOWY!L1901 -> 0 | H133: =0+ZADANIOWY!M1901 -> 0 | I133: =0+ZADANIOWY!N1901 -> 0 | J133: =0+ZADANIOWY!O1901 -> 0 | K133: 0 | L133: 0
C134: 4510 | D134: Opłaty na rzecz budżetu państwa | E134: =0+ZADANIOWY!J1902 -> 0 | F134: =0+ZADANIOWY!K1902 -> 0 | G134: =0+ZADANIOWY!L1902 -> 0 | H134: =0+ZADANIOWY!M1902 -> 0 | I134: =0+ZADANIOWY!N1902 -> 0 | J134: =0+ZADANIOWY!O1902 -> 0 | K134: 0 | L134: 0
C135: 4520 | D135: Opłaty na rzecz budżetów jednostek samorządu terytorialnego | E135: =0+ZADANIOWY!J1903 -> 0 | F135: =0+ZADANIOWY!K1903 -> 0 | G135: =0+ZADANIOWY!L1903 -> 0 | H135: =0+ZADANIOWY!M1903 -> 0 | I135: =0+ZADANIOWY!N1903 -> 0 | J135: =0+ZADANIOWY!O1903 -> 0 | K135: 0 | L135: 0
C136: 4530 | D136: Podatek od towarów i usług (VAT) | E136: =0+ZADANIOWY!J1904 -> 0 | F136: =0+ZADANIOWY!K1904 -> 0 | G136: =0+ZADANIOWY!L1904 -> 0 | H136: =0+ZADANIOWY!M1904 -> 0 | I136: =0+ZADANIOWY!N1904 -> 0 | J136: =0+ZADANIOWY!O1904 -> 0 | K136: 0 | L136: 0
C137: 4580 | D137: Pozostałe odsetki | E137: =0+ZADANIOWY!J1905 -> 0 | F137: =0+ZADANIOWY!K1905 -> 0 | G137: =0+ZADANIOWY!L1905 -> 0 | H137: =0+ZADANIOWY!M1905 -> 0 | I137: =0+ZADANIOWY!N1905 -> 0 | J137: =0+ZADANIOWY!O1905 -> 0 | K137: 0 | L137: 0
C138: 4590 | D138: Kary i odszkodowania wypłacane na rzecz osób fizycznych | E138: =0+ZADANIOWY!J1906 -> 0 | F138: =0+ZADANIOWY!K1906 -> 0 | G138: =0+ZADANIOWY!L1906 -> 0 | H138: =0+ZADANIOWY!M1906 -> 0 | I138: =0+ZADANIOWY!N1906 -> 0 | J138: =0+ZADANIOWY!O1906 -> 0 | K138: 0 | L138: 0
C139: 4600 | D139: Kary, odszkodowania i grzywny wypłacane na rzecz osób prawnych i innych jednostek organizacyjnych | E139: =0 -> 0 | F139: =0 -> 0 | G139: =0 -> 0 | H139: =0 -> 0 | I139: =0 -> 0 | J139: =0 -> 0 | K139: 0 | L139: 0
C140: 4610 | D140: Koszty postępowania sądowego i prokuratorskiego | E140: =0+ZADANIOWY!J1907 -> 0 | F140: =0+ZADANIOWY!K1907 -> 0 | G140: =0+ZADANIOWY!L1907 -> 0 | H140: =0+ZADANIOWY!M1907 -> 0 | I140: =0+ZADANIOWY!N1907 -> 0 | J140: =0+ZADANIOWY!O1907 -> 0 | K140: 0 | L140: 0
C141: 4680 | D141: Odsetki od nieterminowych wpłat podatku od towarów i usług (VAT) | E141: =0 -> 0 | F141: =0 -> 0 | G141: =0 -> 0 | H141: =0 -> 0 | I141: =0 -> 0 | J141: =0 -> 0 | K141: 0 | L141: 0
C142: 4700 | D142: Szkolenia pracowników niebędących członkami korpusu służby cywilnej | E142: =0+ZADANIOWY!J1908 -> 0 | F142: =0+ZADANIOWY!K1908 -> 0 | G142: =0+ZADANIOWY!L1908 -> 0 | H142: =0+ZADANIOWY!M1908 -> 0 | I142: =0+ZADANIOWY!N1908 -> 0 | J142: =0+ZADANIOWY!O1908 -> 0 | K142: 0 | L142: 0
C143: 4710 | D143: Wpłaty na PPK finansowane przez podmiot zatrudniający | E143: =0+ZADANIOWY!J1909 -> 0 | F143: =0+ZADANIOWY!K1909 -> 0 | G143: =0+ZADANIOWY!L1909 -> 0 | H143: =0+ZADANIOWY!M1909 -> 0 | I143: =0+ZADANIOWY!N1909 -> 0 | J143: =0+ZADANIOWY!O1909 -> 0 | K143: 0 | L143: 0
B144: 02095 | D144: Pozostała działalność | E144: =SUM(E145,E154) -> 0 | F144: 0 | G144: 0 | H144: 0 | I144: 0 | J144: 0 | K144: 0 | L144: 0
D145: WYDATKI BIEŻĄCE | E145: =SUM(E146,E149:E153) -> 0 | F145: 0 | G145: 0 | H145: 0 | I145: 0 | J145: 0 | K145: 0 | L145: 0
D146: Wydatki jednostek budżetowych w tym na: | E146: =SUM(E147:E148) -> 0 | F146: 0 | G146: 0 | H146: 0 | I146: 0 | J146: 0 | K146: 0 | L146: 0
D147: wynagrodzenia i składki od nich naliczane | E147: =0+E155+E156+E157 -> 0 | F147: 0 | G147: 0 | H147: 0 | I147: 0 | J147: 0 | K147: 0 | L147: 0
D148: wydatki związane z realizacją ich zadań statutowych | E148: =0+E158+E159+E160 -> 0 | F148: 0 | G148: 0 | H148: 0 | I148: 0 | J148: 0 | K148: 0 | L148: 0
D149: Dotacje na zadania bieżące
D150: Świadczenia na rzecz osób fizycznych
D151: Wydatki na programy finansowane z UE
D152: Obsługa długu
D153: Poręczenia i gwarancje
D154: WYDATKI MAJĄTKOWE
C155: 4110 | D155: Składki na ubezpieczenia społeczne | E155: =0 -> 0 | F155: =0 -> 0 | G155: =0 -> 0 | H155: =0 -> 0 | I155: =0 -> 0 | J155: =0 -> 0 | K155: 0 | L155: 0
C156: 4120 | D156: Składki na Fundusz Pracy oraz Fundusz Solidarnościowy | E156: =0 -> 0 | F156: =0 -> 0 | G156: =0 -> 0 | H156: =0 -> 0 | I156: =0 -> 0 | J156: =0 -> 0 | K156: 0 | L156: 0
C157: 4170 | D157: Wynagrodzenia bezosobowe | E157: =0 -> 0 | F157: =0 -> 0 | G157: =0 -> 0 | H157: =0 -> 0 | I157: =0 -> 0 | J157: =0 -> 0 | K157: =E157-G157+H157 -> 0 | L157: =F157-I157+J157 -> 0 | M157: =IF(SUM(E157:L157)>0,"Tak","") ->  | N157: =IF(SUM(G157:J157)>0,"Tak","") ->  | O157: =IF(OR(E157<F157,K157<L157,G157<I157,H157<J157),"błędny urząd","") ->  | P157: =IF(OR(E157<0,F157<0,K157<0,L157<0),"ujemny plan","") -> 
C158: 4270 | D158: Zakup usług remontowych | E158: =0 -> 0 | F158: =0 -> 0 | G158: =0 -> 0 | H158: =0 -> 0 | I158: =0 -> 0 | J158: =0 -> 0 | K158: 0 | L158: 0
C159: 4300 | D159: Zakup usług pozostałych | E159: =0 -> 0 | F159: =0 -> 0 | G159: =0 -> 0 | H159: =0 -> 0 | I159: =0 -> 0 | J159: =0 -> 0 | K159: 0 | L159: 0
C160: 4500 | D160: Pozostałe podatki na rzecz budżetów jednostek samorządu terytorialnego | E160: =0 -> 0 | F160: =0 -> 0 | G160: =0 -> 0 | H160: =0 -> 0 | I160: =0 -> 0 | J160: =0 -> 0 | K160: 0 | L160: 0
A161: 400 | D161: Wytwarzanie i zaopatrywanie w energię elektryczną, gaz i wodę | E161: =SUM(E162,E171) -> 289003 | F161: 289003 | G161: 37281 | H161: 0 | I161: 37281 | J161: 0 | K161: 251722 | L161: 251722 | M161: Tak | N161: Tak
D162: WYDATKI BIEŻĄCE | E162: =SUM(E163,E166:E170) -> 289003 | F162: 289003 | G162: 37281 | H162: 0 | I162: 37281 | J162: 0 | K162: 251722 | L162: 251722 | M162: Tak | N162: Tak
D163: Wydatki jednostek budżetowych w tym na: | E163: =SUM(E164:E165) -> 289003 | F163: 289003 | G163: 37281 | H163: 0 | I163: 37281 | J163: 0 | K163: 251722 | L163: 251722 | M163: Tak | N163: Tak
D164: wynagrodzenia i składki od nich naliczane | E164: =SUM(E175,E204) -> 0 | F164: 0 | G164: 0 | H164: 0 | I164: 0 | J164: 0 | K164: 0 | L164: 0
D165: wydatki związane z realizacją ich zadań statutowych | E165: 289003 | F165: 289003 | G165: 37281 | H165: 0 | I165: 37281 | J165: 0 | K165: 251722 | L165: 251722 | M165: Tak | N165: Tak
D166: Dotacje na zadania bieżące | E166: 0 | F166: 0 | G166: 0 | H166: 0 | I166: 0 | J166: 0 | K166: 0 | L166: 0
D167: Świadczenia na rzecz osób fizycznych | E167: 0 | F167: 0 | G167: 0 | H167: 0 | I167: 0 | J167: 0 | K167: 0 | L167: 0
D168: Wydatki na programy finansowane z UE | E168: 0 | F168: 0 | G168: 0 | H168: 0 | I168: 0 | J168: 0 | K168: 0 | L168: 0
D169: Obsługa długu | E169: 0 | F169: 0 | G169: 0 | H169: 0 | I169: 0 | J169: 0 | K169: 0 | L169: 0
D170: Poręczenia i gwarancje | E170: 0 | F170: 0 | G170: 0 | H170: 0 | I170: 0 | J170: 0 | K170: 0 | L170: 0
D171: WYDATKI MAJĄTKOWE | E171: 0 | F171: 0 | G171: 0 | H171: 0 | I171: 0 | J171: 0 | K171: 0 | L171: 0
B172: 40002 | D172: Dostarczanie wody | E172: =SUM(E173,E182) -> 289003 | F172: 289003 | G172: 37281 | H172: 0 | I172: 37281 | J172: 0 | K172: 251722 | L172: 251722 | M172: Tak | N172: Tak
D173: WYDATKI BIEŻĄCE | E173: =SUM(E174,E177:E181) -> 289003 | F173: 289003 | G173: 37281 | H173: 0 | I173: 37281 | J173: 0 | K173: 251722 | L173: 251722 | M173: Tak | N173: Tak
D174: Wydatki jednostek budżetowych w tym na: | E174: =SUM(E175:E176) -> 289003 | F174: 289003 | G174: 37281 | H174: 0 | I174: 37281 | J174: 0 | K174: 251722 | L174: 251722 | M174: Tak | N174: Tak
D175: wynagrodzenia i składki od nich naliczane | E175: =0+E183+E184+E185 -> 0 | F175: 0 | G175: 0 | H175: 0 | I175: 0 | J175: 0 | K175: 0 | L175: 0
D176: wydatki związane z realizacją ich zadań statutowych | E176: =0+E186+E187+E188+E189+E190+E191+E192+E193+E194+E195+E196+E197+E198 -> 289003 | F176: 289003 | G176: 37281 | H176: 0 | I176: 37281 | J176: 0 | K176: 251722 | L176: 251722 | M176: Tak | N176: Tak
D177: Dotacje na zadania bieżące
D178: Świadczenia na rzecz osób fizycznych
D179: Wydatki na programy finansowane z UE
D180: Obsługa długu
D181: Poręczenia i gwarancje
D182: WYDATKI MAJĄTKOWE | E182: =0+E199+E200 -> 0 | F182: 0 | G182: 0 | H182: 0 | I182: 0 | J182: 0 | K182: 0 | L182: 0
C183: 4110 | D183: Składki na ubezpieczenia społeczne | E183: =0+ZADANIOWY!J1572 -> 0 | F183: =0+ZADANIOWY!K1572 -> 0 | G183: =0+ZADANIOWY!L1572 -> 0 | H183: =0+ZADANIOWY!M1572 -> 0 | I183: =0+ZADANIOWY!N1572 -> 0 | J183: =0+ZADANIOWY!O1572 -> 0 | K183: 0 | L183: 0
C184: 4120 | D184: Składki na Fundusz Pracy oraz Fundusz Solidarnościowy | E184: =0+ZADANIOWY!J1573 -> 0 | F184: =0+ZADANIOWY!K1573 -> 0 | G184: =0+ZADANIOWY!L1573 -> 0 | H184: =0+ZADANIOWY!M1573 -> 0 | I184: =0+ZADANIOWY!N1573 -> 0 | J184: =0+ZADANIOWY!O1573 -> 0 | K184: 0 | L184: 0
C185: 4170 | D185: Wynagrodzenia bezosobowe | E185: =0+ZADANIOWY!J1574 -> 0 | F185: =0+ZADANIOWY!K1574 -> 0 | G185: =0+ZADANIOWY!L1574 -> 0 | H185: =0+ZADANIOWY!M1574 -> 0 | I185: =0+ZADANIOWY!N1574 -> 0 | J185: =0+ZADANIOWY!O1574 -> 0 | K185: 0 | L185: 0
C186: 4210 | D186: Zakup materiałów i wyposażenia | E186: =0+ZADANIOWY!J1575 -> 0 | F186: =0+ZADANIOWY!K1575 -> 0 | G186: =0+ZADANIOWY!L1575 -> 0 | H186: =0+ZADANIOWY!M1575 -> 0 | I186: =0+ZADANIOWY!N1575 -> 0 | J186: =0+ZADANIOWY!O1575 -> 0 | K186: 0 | L186: 0
C187: 4260 | D187: Zakup energii | E187: =0+ZADANIOWY!J1576 -> 75000 | F187: =0+ZADANIOWY!K1576 -> 75000 | G187: =0+ZADANIOWY!L1576 -> 23956 | H187: =0+ZADANIOWY!M1576 -> 0 | I187: =0+ZADANIOWY!N1576 -> 23956 | J187: =0+ZADANIOWY!O1576 -> 0 | K187: 51044 | L187: 51044 | M187: Tak | N187: Tak
C188: 4270 | D188: Zakup usług remontowych | E188: =0+ZADANIOWY!J1577 -> 133753 | F188: =0+ZADANIOWY!K1577 -> 133753 | G188: =0+ZADANIOWY!L1577 -> 0 | H188: =0+ZADANIOWY!M1577 -> 0 | I188: =0+ZADANIOWY!N1577 -> 0 | J188: =0+ZADANIOWY!O1577 -> 0 | K188: 133753 | L188: 133753 | M188: Tak
C189: 4300 | D189: Zakup usług pozostałych | E189: =0+ZADANIOWY!J1578+ZADANIOWY!J1595 -> 51000 | F189: =0+ZADANIOWY!K1578+ZADANIOWY!K1595 -> 51000 | G189: =0+ZADANIOWY!L1578+ZADANIOWY!L1595 -> 0 | H189: =0+ZADANIOWY!M1578+ZADANIOWY!M1595 -> 0 | I189: =0+ZADANIOWY!N1578+ZADANIOWY!N1595 -> 0 | J189: =0+ZADANIOWY!O1578+ZADANIOWY!O1595 -> 0 | K189: 51000 | L189: 51000 | M189: Tak
C190: 4390 | D190: Zakup usług obejmujących wykonanie ekspertyz, analiz i opinii | E190: =0+ZADANIOWY!J1579+ZADANIOWY!J1596 -> 26000 | F190: =0+ZADANIOWY!K1579+ZADANIOWY!K1596 -> 26000 | G190: =0+ZADANIOWY!L1579+ZADANIOWY!L1596 -> 13325 | H190: =0+ZADANIOWY!M1579+ZADANIOWY!M1596 -> 0 | I190: =0+ZADANIOWY!N1579+ZADANIOWY!N1596 -> 13325 | J190: =0+ZADANIOWY!O1579+ZADANIOWY!O1596 -> 0 | K190: 12675 | L190: 12675 | M190: Tak | N190: Tak
C191: 4430 | D191: Różne opłaty i składki | E191: =0+ZADANIOWY!J1580+ZADANIOWY!J1597 -> 0 | F191: =0+ZADANIOWY!K1580+ZADANIOWY!K1597 -> 0 | G191: =0+ZADANIOWY!L1580+ZADANIOWY!L1597 -> 0 | H191: =0+ZADANIOWY!M1580+ZADANIOWY!M1597 -> 0 | I191: =0+ZADANIOWY!N1580+ZADANIOWY!N1597 -> 0 | J191: =0+ZADANIOWY!O1580+ZADANIOWY!O1597 -> 0 | K191: 0 | L191: 0
C192: 4480 | D192: Podatek od nieruchomości | E192: =0+ZADANIOWY!J1581 -> 0 | F192: =0+ZADANIOWY!K1581 -> 0 | G192: =0+ZADANIOWY!L1581 -> 0 | H192: =0+ZADANIOWY!M1581 -> 0 | I192: =0+ZADANIOWY!N1581 -> 0 | J192: =0+ZADANIOWY!O1581 -> 0 | K192: 0 | L192: 0
C193: 4510 | D193: Opłaty na rzecz budżetu państwa | E193: =0+ZADANIOWY!J1582 -> 3250 | F193: =0+ZADANIOWY!K1582 -> 3250 | G193: =0+ZADANIOWY!L1582 -> 0 | H193: =0+ZADANIOWY!M1582 -> 0 | I193: =0+ZADANIOWY!N1582 -> 0 | J193: =0+ZADANIOWY!O1582 -> 0 | K193: 3250 | L193: 3250 | M193: Tak
C194: 4520 | D194: Opłaty na rzecz budżetów jednostek samorządu terytorialnego | E194: =0+ZADANIOWY!J1583 -> 0 | F194: =0+ZADANIOWY!K1583 -> 0 | G194: =0+ZADANIOWY!L1583 -> 0 | H194: =0+ZADANIOWY!M1583 -> 0 | I194: =0+ZADANIOWY!N1583 -> 0 | J194: =0+ZADANIOWY!O1583 -> 0 | K194: 0 | L194: 0
C195: 4530 | D195: Podatek od towarów i usług (VAT) | E195: =0 -> 0 | F195: =0 -> 0 | G195: =0 -> 0 | H195: =0 -> 0 | I195: =0 -> 0 | J195: =0 -> 0 | K195: 0 | L195: 0
C196: 4590 | D196: Kary i odszkodowania wypłacane na rzecz osób fizycznych | E196: =0 -> 0 | F196: =0 -> 0 | G196: =0 -> 0 | H196: =0 -> 0 | I196: =0 -> 0 | J196: =0 -> 0 | K196: 0 | L196: 0
C197: 4600 | D197: Kary, odszkodowania i grzywny wypłacane na rzecz osób prawnych i innych jednostek organizacyjnych | E197: =0 -> 0 | F197: =0 -> 0 | G197: =0 -> 0 | H197: =0 -> 0 | I197: =0 -> 0 | J197: =0 -> 0 | K197: 0 | L197: 0
C198: 4610 | D198: Koszty postępowania sądowego i prokuratorskiego | E198: =0 -> 0 | F198: =0 -> 0 | G198: =0 -> 0 | H198: =0 -> 0 | I198: =0 -> 0 | J198: =0 -> 0 | K198: 0 | L198: 0
C199: 6050 | D199: Wydatki inwestycyjne jednostek budżetowych | K199: 0 | L199: 0
C200: 6060 | D200: Wydatki na zakupy inwestycyjne jednostek budżetowych | K200: 0 | L200: 0
B201: 40095 | D201: Pozostała działalność | E201: =SUM(E202,E211) -> 0 | F201: 0 | G201: 0 | H201: 0 | I201: 0 | J201: 0 | K201: 0 | L201: 0
... 4299 more rows

Sheet majatkowe
J1: Załącznik 3 do uchwały Nr VIII/75/2024 Rady Dzielnicy Białołęka m.st. Warszawy z 16 października 2024 r.
A5: WNIOSEK W SPRAWIE ZMIAN W PLANIE WYDATKÓW MAJĄTKOWYCH
A6: Stanowisko finansowe | C6: Pozycje finansowe | F6: Obszar funkcjonalny | G6: Program budżetowy | I6: Plan | J6: Wykonanie wg stanu na dzień | K6: Proponowane zmiany | M6: Plan po zmianach
A7: Nazwa dysponenta ** | B7: Kod dysponenta | C7: Dział | D7: rozdział | E7: § | F7: Kod | G7: Nazwa | H7: Kod | K7: zmniejszenia | L7: zwiększenia
A10: Dzielnicowe Biuro Finansów i Oświaty | B10: J.02.000 | C10: 801.80104.6060 | F10: GMMW | G10: Zakupy inwestycyjne dla przedszkoli | H10: C/BIA/V/P1/5 | I10: 73616 | K10: 10640 | L10: 0 | M10: =I10-K10+L10 -> 62976
A11: Dzielnicowe Biuro Finansów i Oświaty | B11: J.02.000 | C11: 801.80148.6060 | F11: GMMW | G11: Zakupy inwestycyjne dla stołówek szkolnych | H11: C/BIA/V/P1/49 | I11: 68879 | K11: 4208 | L11: 0 | M11: 64671
A12: Wydział Inwestycji | B12: U.02.000 | C12: 801.80101.6050 | F12: EDUK | G12: Budowa szkoły podstawowej przy ul. Gerberowej (Kępa Tarchomińska) - prace przygotowawcze | H12: C/BIA/V/P1/27 | I12: 5000 | K12: 5000 | L12: 0 | M12: 0
A13: Wydział Inwestycji | B13: U.02.000 | C13: 801.80101.6050 | F13: EDUK | G13: Budowa kompleksu oświatowego przy ul. Świderskiej w Warszawie | H13: C/BIA/V/P1/31 | I13: 9036166 | K13: 500000 | L13: 0 | M13: 8536166
A14: Wydział Inwestycji | B14: U.02.000 | C14: 801.80101.6050 | F14: GMMW | G14: Budowa kompleksu oświatowego przy ul. Świderskiej w Warszawie | H14: C/BIA/V/P1/31 | I14: 6061300 | K14: 1833694 | L14: 0 | M14: 4227606
A15: Wydział Inwestycji | B15: U.02.000 | C15: 801.80101.6050 | F15: GMMW | G15: Budowa kompleksu oświatowego na Zielonej Białołęce w rejonie ul. Siecznej- prace przygotowawcze | H15: C/BIA/V/P1/32 | I15: 368278 | K15: 326519 | L15: 0 | M15: 41759
A16: Wydział Inwestycji | B16: U.02.000 | C16: 801.80101.6050 | F16: GMMW | G16: Modernizacja Sali gimnastycznej w Szkole Podstawowej nr 110 przy ul. Bohaterów 41 | H16: C/BIA/V/P1/59 | I16: 899000 | K16: 876860 | L16: 0 | M16: 22140
A17: Wydział Inwestycji | B17: U.02.000 | C17: 801.80120.6050 | F17: GMMW | G17: Modernizacja boiska wielofunkcyjnego przy ul. Ostródzkiej 175 | H17: C/BIA/V/P1/60 | I17: 5454247 | K17: 650000 | L17: 0 | M17: 4804247
A18: Wydział Inwestycji | B18: U.02.000 | C18: 801.80120.6050 | F18: MWPO | G18: Modernizacja boiska wielofunkcyjnego przy ul. Ostródzkiej 175 | H18: C/BIA/V/P1/60 | I18: 0 | K18: 0 | L18: 2478462 | M18: 2478462
A19: Wydział Inwestycji | B19: U.02.000 | C19: 855.85516.6050 | F19: GMMW | G19: Budowa Centrum Aktywności Międzypokoleniowej przy ul. Ceramicznej - część 2 | H19: C/BIA/VI/P3/6A | I19: 22104 | K19: 21849 | L19: 0 | M19: 255
A20: Wydział Inwestycji | B20: U.02.000 | C20: 855.85516.6050 | F20: ZLOB | G20: Budowa Centrum Aktywności Międzypokoleniowej przy ul. Ceramicznej - część 2 | H20: C/BIA/VI/P3/6A | I20: 561909 | K20: 97175 | L20: 0 | M20: 464734
A21: Wydział Inwestycji | B21: U.02.000 | C21: 855.85516.6050 | F21: ZLOB | G21: Budowa żłobka przy ul. Ku Rzece | H21: C/BIA/VI/P3/8 | I21: 2677108 | K21: 280000 | L21: 0 | M21: 2397108
A22: Wydział Inwestycji | B22: U.02.000 | C22: 926.92601.6050 | F22: EDUK | G22: Wymiana nawierzchni syntetycznej infrastruktury sportowej przy ul. Zaułek 34 | H22: C/BIA/VIII/P1/22 | I22: 70000 | K22: 11780 | L22: 0 | M22: 58220
A23: Wydział Inwestycji | B23: U.02.000 | C23: 926.92601.6050 | F23: GMMW | G23: Wymiana nawierzchni syntetycznej infrastruktury sportowej przy ul. Zaułek 34 | H23: C/BIA/VIII/P1/22 | I23: 340 | K23: 340 | L23: 0 | M23: 0
A24: Wydział Inwestycji | B24: U.02.000 | C24: 801.80104.6050 | D24: 80104 | E24: 6050 | F24: GMMW | G24: Modernizacja i rozbudowa Przedszkola z Oddziałami Integracyjnymi nr 65 "Tarchominek" przy ul. Pancera 3 | H24: C/BIA/V/P1/53 | I24: 5556705 | K24: 4792406 | L24: 0 | M24: 764299
A25: Wydział Inwestycji | B25: U.02.000 | C25: 801.80101.6050 | D25: 80104 | E25: 6050 | F25: GMMW | G25: Dostosowanie budynku Szkoły Podstawowej 344 przy ul. Erazma z Zakroczymia do przepisów ppoż. związanych z oddymianiem klatek schodowych | H25: C/BIA/V/P1/57 | I25: 132840 | K25: 7380 | L25: 0 | M25: 125460
A26: Wydział Administracyjno-Gospodarczy | B26: U.02.000 | C26: 750.75023.6050 | F26: GMMW | G26: Modernizacja wejścia do Urzędu Stanu Cywilnego oraz wejścia B do budynku Urzędu Dzielnicy | H26: C/BIA/X/P2/10 | I26: 31000 | K26: 250 | L26: 0 | M26: 30750
A27: Wydział Inwestycji Drogowych | B27: U.02.000 | C27: 600.60016.6050 | F27: GMMW | G27: Budowa ul. Olesin na odcinku od ul. Rajgrasowej do ul. Wojdyńskiej | H27: C/BIA/I/P2/97 | I27: 100000 | K27: 50000 | L27: 0 | M27: 50000
A28: Wydział Inwestycji Drogowych | B28: U.02.000 | C28: 600.60016.6050 | F28: GMMW | G28: Budowa ul. Warzelniczej na odcinku od ul. Hemara do posesji nr 18B | H28: C/BIA/I/P2/98 | I28: 500000 | K28: 300000 | L28: 0 | M28: 200000
A29: Wydział Inwestycji Drogowych | B29: U.02.000 | C29: 900.90015.6050 | F29: GMMW | G29: Budowa oświetlenia w ul. Samosiejki | H29: C/BIA/I/P2/191 | I29: 50000 | K29: 40130 | L29: 0 | M29: 9870
A30: Wydział Inwestycji Drogowych | B30: U.02.000 | C30: 900.90015.6050 | F30: BO/24/02/0049 | G30: Jaśniej i bezpieczniej - doświetlenie przejść dla pieszych | H30: C/BIA/I/P2/195 | I30: 216000 | K30: 44800 | L30: 0 | M30: 171200
A31: Wydział Inwestycji Drogowych | B31: U.02.000 | C31: 900.90015.6050 | F31: BO/24/02/0041 | G31: Doświetlenie przejść dla pieszych | H31: C/BIA/I/P2/196 | I31: 216000 | K31: 64464 | L31: 0 | M31: 151536
A32: Wydział Inwestycji Drogowych | B32: U.02.000 | C32: 600.60016.6050 | F32: GMMW | G32: Budowa chodnika w ul. Kobiałka ze ścieżką rowerową | H32: C/BIA/I/P2/202 | I32: 50000 | K32: 40000 | L32: 0 | M32: 10000
A33: Wydział Inwestycji Drogowych | B33: U.02.000 | C33: 600.60016.6050 | F33: GMMW | G33: Budowa ul. Dionizosa | H33: C/BIA/I/P2/206 | I33: 123 | K33: 123 | L33: 0 | M33: 0
A34: Wydział Inwestycji Drogowych | B34: U.02.000 | C34: 600.60016.6050 | F34: DE/02/0041 | G34: Budowa chodnika w ul. Czarodzieja | H34: C/BIA/I/P2/208 | I34: 50000 | K34: 40000 | L34: 0 | M34: 10000
A35: Wydział Inwestycji | B35: U.02.000 | C35: 900.90095.6050 | F35: GMMW | G35: Budowa parku przy ul. Botewa | H35: C/BIA/III/P3/19 | I35: 4553237 | K35: 2305092 | L35: 200000 | M35: 2448145
A36: Wydział Ochrony Środowiska | B36: U.02.000 | C36: 900.90095.6050 | F36: GMMW | G36: Modernizacja terenu sportowo - rekreacyjnego w Parku Magiczna | H36: C/BIA/III/P3/28 | I36: 780000 | K36: 653310 | L36: 0 | M36: 126690
A37: Wydział Infrastuktury | B37: U.02.000 | C37: 600.60095.6050 | F37: BO/23/02/0064 | G37: Wygodna i bezpieczna infrastruktura pieszo-rowerowa nad kanałem Żerańskim | H37: C/BIA/I/P2/185 | I37: 373253 | K37: 29978 | L37: 0 | M37: 343275
A38: Wydział Infrastuktury | B38: U.02.000 | C38: 600.60095.6050 | F38: GMMW | G38: Wygodna i bezpieczna infrastruktura pieszo-rowerowa nad kanałem Żerańskim | H38: C/BIA/I/P2/185 | I38: 300000 | K38: 0 | L38: 0 | M38: 300000
A39: Wydział Gospodarki Nieruchomościami | B39: U.02.000 | C39: 600.60016.6050 | F39: GMMW | G39: Budowa ul. Srebrnogórskiej na odcinku od 15 Sierpnia do ul. Szynowej | H39: C/BIA/I/P2/104 | I39: 1998200 | K39: 349000 | L39: 0 | M39: 1649200
A40: Wydział Gospodarki Nieruchomościami | B40: U.02.000 | C40: 600.60016.6050 | F40: GMMW | G40: Modernizacja ul. Zdziarskiej | H40: C/BIA/I/P2/38 | I40: 650537 | K40: 632205 | L40: 0 | M40: 18332
A41: Wydział Gospodarki Nieruchomościami | B41: U.02.000 | C41: 600.60016.6050 | F41: GMMW | G41: Modernizacja mostu w ciągu ul. Chudoby | H41: C/BIA/I/P2/111 | I41: 520117 | K41: 520117 | L41: 0 | M41: 0
A42: Wydział Gospodarki Nieruchomościami | B42: U.02.000 | C42: 600.60016.6060 | F42: DE/02/0006 | G42: Nabycie gruntów pod ul. Szałasa - rozliczenie z deweloperem | H42: C/BIA/I/P2/134 | I42: 3872 | K42: 3872 | L42: 0 | M42: 0
A43: Wydział Gospodarki Nieruchomościami | B43: U.02.000 | C43: 600.60016.6060 | F43: GMMW | G43: Nabycie gruntów pod ul. Szałasa - rozliczenie z deweloperem | H43: C/BIA/I/P2/134 | I43: 16192 | K43: 16192 | L43: 0 | M43: 0
A44: Wydział Gospodarki Nieruchomościami | B44: U.02.000 | C44: 600.60016.6060 | F44: DE/02/0007 | G44: Nabycie gruntów pod ul. Książkową - rozliczenie z deweloperem | H44: C/BIA/I/P2/135 | I44: 172893 | K44: 172893 | L44: 0 | M44: 0
A45: Wydział Gospodarki Nieruchomościami | B45: U.02.000 | C45: 600.60016.6060 | F45: GMMW | G45: Nabycie gruntów pod ul. Książkową - rozliczenie z deweloperem | H45: C/BIA/I/P2/135 | I45: 0 | L45: 300 | M45: 300
A46: Wydział Gospodarki Nieruchomościami | B46: U.02.000 | C46: 600.60016.6050 | F46: GMMW | G46: Budowa ul. Tajemnej | H46: C/BIA/I/P2/114 | I46: 1127134 | K46: 400000 | L46: 0 | M46: 727134
A47: Wydział Gospodarki Nieruchomościami | B47: U.02.000 | C47: 600.60016.6060 | F47: DE/02/0008 | G47: Budowa ul. Ostródzkiej od kładki na rzece Długiej - rozliczenie z deweloperem | H47: C/BIA/I/P2/152 | I47: 43470 | K47: 43470 | L47: 0 | M47: 0
A48: Wydział Gospodarki Nieruchomościami | B48: U.02.000 | C48: 600.60016.6060 | F48: GMMW | G48: Budowa ul. Ostródzkiej od kładki na rzece Długiej - rozliczenie z deweloperem | H48: C/BIA/I/P2/152 | I48: 76251 | K48: 0 | L48: 0 | M48: 76251
A49: Wydział Gospodarki Nieruchomościami | B49: U.02.000 | C49: 600.60016.6060 | F49: GMMW | G49: Nabycie nieruchomości w związku z budową układu drogowego ul. Aluzyjnej - rozliczenie z deweloperem | H49: C/BIA/I/P2/153 | I49: 183708 | K49: 183708 | L49: 0 | M49: 0
A50: Wydział Gospodarki Nieruchomościami | B50: U.02.000 | C50: 600.60016.6060 | F50: DE/02/0009 | G50: Budowa ul. Innej - rozliczenie z deweloperem | H50: C/BIA/I/P2/154 | I50: 665227 | K50: 665227 | L50: 0 | M50: 0
A51: Wydział Gospodarki Nieruchomościami | B51: U.02.000 | C51: 600.60016.6060 | F51: GMMW | G51: Budowa ul. Innej - rozliczenie z deweloperem | H51: C/BIA/I/P2/154 | I51: 3708 | K51: 3708 | L51: 0 | M51: 0
A52: Wydział Gospodarki Nieruchomościami | B52: U.02.000 | C52: 600.60016.6060 | F52: DE/02/0010 | G52: Rozbudowa ul. Aluzyjnej - rozliczenie z deweloperem | H52: C/BIA/I/P2/155 | I52: 54101 | K52: 54101 | L52: 0 | M52: 0
A53: Wydział Gospodarki Nieruchomościami | B53: U.02.000 | C53: 600.60016.6060 | F53: GMMW | G53: Rozbudowa ul. Aluzyjnej - rozliczenie z deweloperem | H53: C/BIA/I/P2/155 | I53: 1000 | K53: 700 | L53: 0 | M53: 300
A54: Wydział Gospodarki Nieruchomościami | B54: U.02.000 | C54: 600.60016.6060 | F54: GMMW | G54: Budowa ul. 2KD-D wraz z rozbudową skrzyżowania z ul. Płochocińską oraz nabyciem gruntów - rozliczenie z deweloperem | H54: C/BIA/I/P2/156 | I54: 875692 | K54: 875692 | L54: 0 | M54: 0
A55: Wydział Gospodarki Nieruchomościami | B55: U.02.000 | C55: 600.60016.6060 | F55: DE/02/0013 | G55: Rozbudowa ul.Dziatwy - rozliczenie z deweloperem | H55: C/BIA/I/P2/160 | I55: 622934 | K55: 622934 | L55: 0 | M55: 0
A56: Wydział Gospodarki Nieruchomościami | B56: U.02.000 | C56: 600.60016.6060 | F56: GMMW | G56: Rozbudowa ul.Dziatwy - rozliczenie z deweloperem | H56: C/BIA/I/P2/160 | I56: 3200 | K56: 3200 | L56: 0 | M56: 0
A57: Wydział Gospodarki Nieruchomościami | B57: U.02.000 | C57: 600.60016.6060 | F57: DE/02/0014 | G57: Rozbudowa ul. Tajemnej - rozliczenie z deweloperem | H57: C/BIA/I/P2/165 | I57: 245457 | K57: 170492 | L57: 0 | M57: 74965
A58: Wydział Gospodarki Nieruchomościami | B58: U.02.000 | C58: 600.60016.6060 | F58: GMMW | G58: Rozbudowa ul. Tajemnej - rozliczenie z deweloperem | H58: C/BIA/I/P2/165 | I58: 2000 | K58: 2000 | L58: 0 | M58: 0
A59: Wydział Gospodarki Nieruchomościami | B59: U.02.000 | C59: 600.60016.6060 | F59: GMMW | G59: Wykup części działek [dane zanonimizowane] z obrębu 4-03-01 pod zieleń publiczną i ciąg pieszy | H59: C/BIA/I/P2/166 | I59: 144695 | K59: 144695 | L59: 0 | M59: 0
A60: Wydział Gospodarki Nieruchomościami | B60: U.02.000 | C60: 600.60016.6060 | F60: GMMW | G60: Wykup gruntów pod ul. Topolową na odcinku od ul. H. Ordonówny do ul. Pasłęckiej | H60: C/BIA/I/P2/167 | I60: 498770 | K60: 495941 | L60: 0 | M60: 2829
A61: Wydział Gospodarki Nieruchomościami | B61: U.02.000 | C61: 600.60016.6060 | F61: DE/02/0016 | G61: Nabycie gruntów pod budowę ul. Duninów - rozliczenie z deweloperem | H61: C/BIA/I/P2/172 | I61: 153160 | K61: 124426 | L61: 0 | M61: 28734
A62: Wydział Gospodarki Nieruchomościami | B62: U.02.000 | C62: 600.60016.6060 | F62: DE/02/0017 | G62: Nabycie gruntów pod budowę ul. Kabrioletu - rozliczenie z deweloperem | H62: C/BIA/I/P2/173 | I62: 111284 | K62: 111284 | L62: 0 | M62: 0
A63: Wydział Gospodarki Nieruchomościami | B63: U.02.000 | C63: 600.60016.6060 | F63: GMMW | G63: Nabycie gruntów pod budowę ul. Kabrioletu - rozliczenie z deweloperem | H63: C/BIA/I/P2/173 | I63: 800 | K63: 200 | L63: 0 | M63: 600
A64: Wydział Gospodarki Nieruchomościami | B64: U.02.000 | C64: 600.60016.6050 | F64: DE/02/0015 | G64: Rozbudowa ul. Morelowej - rozliczenie z deweloperem | H64: C/BIA/I/P2/170 | I64: 203560 | K64: 203560 | L64: 0 | M64: 0
A65: Wydział Gospodarki Nieruchomościami | B65: U.02.000 | C65: 600.60016.6060 | F65: DE/02/0021 | G65: Nabycie gruntów pod ul. Trakt Nadwiślański (Osiedle Piekiełko) - rozliczenie z deweloperem | H65: C/BIA/I/P2/178 | I65: 2309629 | K65: 2309629 | L65: 0 | M65: 0
A66: Wydział Gospodarki Nieruchomościami | B66: U.02.000 | C66: 600.60016.6060 | F66: DE/02/0022 | G66: Nabycie gruntów pod ul. Hemara - rozliczenie z deweloperem | H66: C/BIA/I/P2/179 | I66: 46485 | K66: 46485 | L66: 0 | M66: 0
A67: Wydział Gospodarki Nieruchomościami | B67: U.02.000 | C67: 600.60016.6060 | F67: GMMW | G67: Nabycie gruntów pod ul. Hemara - rozliczenie z deweloperem | H67: C/BIA/I/P2/179 | I67: 300 | K67: 300 | L67: 0 | M67: 0
A68: Wydział Gospodarki Nieruchomościami | B68: U.02.000 | C68: 600.60016.6060 | F68: DE/02/0020 | G68: Nabycie gruntów pod budowę ronda ul. Winorośli/Dionizosa | H68: C/BIA/I/P2/177 | I68: 200000 | K68: 200000 | L68: 0 | M68: 0
A69: Wydział Gospodarki Nieruchomościami | B69: U.02.000 | C69: 600.60016.6060 | F69: DE/02/0018 | G69: Nabycie gruntów pod ul. Projektowaną 2D (Osiedle Piekiełko) - rozliczenie z deweloperem - etap II | H69: C/BIA/I/P2/175 | I69: 852675 | K69: 852675 | L69: 0 | M69: 0
A70: Wydział Gospodarki Nieruchomościami | B70: U.02.000 | C70: 600.60016.6060 | F70: DE/02/0023 | G70: Nabycie gruntów w ul. Tarasowej i ul. Liczydło - rozliczenie z deweloperem | H70: C/BIA/I/P2/182 | I70: 648520 | K70: 648520 | L70: 0 | M70: 0
A71: Wydział Gospodarki Nieruchomościami | B71: U.02.000 | C71: 600.60016.6060 | F71: GMMW | G71: Nabycie gruntów w ul. Tarasowej i ul. Liczydło - rozliczenie z deweloperem | H71: C/BIA/I/P2/182 | I71: 2600 | K71: 0 | L71: 0 | M71: 2600
A72: Wydział Gospodarki Nieruchomościami | B72: U.02.000 | C72: 600.60016.6060 | F72: DE/02/0025 | G72: Nabycie gruntów pod ul. Talarową - etap II - rozliczenie z deweloperem | H72: C/BIA/I/P2/186 | I72: 300 | K72: 300 | L72: 0 | M72: 0
A73: Wydział Gospodarki Nieruchomościami | B73: U.02.000 | C73: 600.60016.6060 | F73: DE/02/0030 | G73: Nabycie gruntów pod ul. Włodkowica - rozliczenie z deweloperem | H73: C/BIA/I/P2/192 | I73: 1500 | K73: 600 | L73: 0 | M73: 900
A74: Wydział Gospodarki Nieruchomościami | B74: U.02.000 | C74: 600.60016.6060 | F74: DE/02/0035 | G74: Nabycie gruntów pod ul. Projektowaną KD-31 (os. Grodzisk) - rozliczenie z deweloperem | H74: C/BIA/I/P2/199 | I74: 900 | K74: 900 | L74: 0 | M74: 0
A75: Wydział Gospodarki Nieruchomościami | B75: U.02.000 | C75: 600.60016.6060 | F75: DE/02/0036 | G75: Nabycie gruntów pod ul. Żubowiecką i ul. Łopianową - rozliczenie z deweloperem | H75: C/BIA/I/P2/200 | I75: 1500 | K75: 1500 | L75: 0 | M75: 0
A76: Wydział Gospodarki Nieruchomościami | B76: U.02.000 | C76: 600.60016.6060 | F76: DE/02/0037 | G76: Nabycie gruntów pod ul. Elfów - rozliczenie z deweloperem | H76: C/BIA/I/P2/201 | I76: 300 | K76: 300 | L76: 0 | M76: 0
A77: Wydział Ochrony Środowiska | B77: U.02.000 | C77: 900.90095.6050 | F77: BO/23/02/0054 | G77: Bardziej zielona Białołęka - nowe krzewy i teren rekreacyjny dla mieszkańców dzielnicy | H77: C/BIA/III/P4/39 | I77: 405410 | K77: 29440 | L77: 0 | M77: 375970
A78: Wydział Ochrony Środowiska | B78: U.02.000 | C78: 900.90095.6050 | F78: BO/23/02/0059 | G78: Monitoring i oświetlenie parków i placów zabaw na Białołęce | H78: C/BIA/III/P4/40 | I78: 356750 | K78: 40400 | L78: 0 | M78: 316350
A79: Wydział Ochrony Środowiska | B79: U.02.000 | C79: 900.90095.6050 | F79: BO/23/02/0063 | G79: Beton stop nowe parki i skwery na Białołęce | H79: C/BIA/III/P4/41 | I79: 467550 | K79: 20000 | L79: 0 | M79: 447550
A80: Wydział Ochrony Środowiska | B80: U.02.000 | C80: 900.90095.6050 | F80: BO/24/02/0048 | G80: Park Zaułek | H80: C/BIA/III/P4/44 | I80: 800000 | K80: 773063 | L80: 0 | M80: 26937
A81: Wydział Ochrony Środowiska | B81: U.02.000 | C81: 900.90095.6050 | F81: GMMW | G81: Utworzenie ogrodu sensorycznego na terenie Centrum Zdrowia Dziecka | H81: C/BIA/III/P3/27 | I81: 100000 | K81: 75250 | L81: 0 | M81: 24750
A82: RAZEM | I82: =SUM(I10:I81) -> 52779486 | J82: =SUM(J10:J81) -> 0 | K82: =SUM(K10:K81) -> 23784977 | L82: =SUM(L10:L81) -> 2678762 | M82: =SUM(M10:M81) -> 31673271
F8953: =majatkowe!#REF! -> 
